Workbook

Sheet Summary
A1: Project Budget Worksheet - Iowa State University of Science and Technology | S1: Eff. 7/1/2018
S2: Updated 7/02/2018
A3: Program Sponsor | E3: Enter Start Date: | G3: 2018-07-01 | I3: Start Date must be entered for each budget
A4: Title | E4: Enter other rate (if needed): | G4: 0 | I4: This budget is completely adjustable. You will need to double check your work and make adjustments in certain cells, such as: | U4: Negotiated Rate
A5: PI | E5: Select calculation type: | G5: Negotiated Rate | I5: Subcontracts - Verify that only the first $25K of each subcontract is charged IDC. You might need to adjust the MTDC for each year of each subcontract. | U5: Other TDC
A6: Period of Performance | I6: Indirect costs- Budget defaults to caculate on 52% MTDC and 53% MTDC, with precise rate in on "F&A Calculations" sheet. | U6: Other MTDC
A7: Deadline | J7: To use a rate other than organized research, please enter rate in 'Enter Other Rate' cell and select 'Other TDC' or 'Other MTDC' in dropdown.
H9: Year 1 | J9: Year 2 | L9: Year 3 | N9: Year 4 | P9: Year 5 | R9: Total Federal Funds | S9: Total Cost-Shared Matching Funds | T9: Total Project Funds
H10: Start Date | I10: End Date | J10: Start Date | K10: End Date | L10: Start Date | M10: End Date | N10: Start Date | O10: End Date | P10: Start Date | Q10: End Date
H11: =DATE(YEAR(G3),MONTH(G3),DAY(G3)) -> 2018-07-01 | I11: =J11-1 -> 2019-06-30 | J11: =DATE(YEAR(G3)+1,MONTH(G3),DAY(G3)) -> 2019-07-01 | K11: =L11-1 -> 2020-06-30 | L11: =DATE(YEAR(G3)+2,MONTH(G3),DAY(G3)) -> 2020-07-01 | M11: =N11-1 -> 2021-06-30 | N11: =DATE(YEAR(G3)+3,MONTH(G3),DAY(G3)) -> 2021-07-01 | O11: =P11-1 -> 2022-06-30 | P11: =DATE(YEAR(G3)+4,MONTH(G3),DAY(G3)) -> 2022-07-01 | Q11: =P11+364 -> 2023-06-30
H12: Federal Funds Requested | I12: Cost-Shared Matching Funds | J12: Federal Funds Requested | K12: Cost-Shared Matching Funds | L12: Federal Funds Requested | M12: Cost-Shared Matching Funds | N12: Federal Funds Requested | O12: Cost-Shared Matching Funds | P12: Federal Funds Requested | Q12: Cost-Shared Matching Funds
D13: Salary | E13: Calendar | F13: Academic | G13: Summer
A14: A | C14: Key Personnel | D14: Monthly | E14: Months | F14: Months | G14: Months | H14: =SUM(H15:H23) -> 0 | I14: 0 | J14: 0 | K14: 0 | L14: 0 | M14: 0 | N14: 0 | O14: 0 | P14: 0 | Q14: 0 | R14: =SUM(H14+J14+L14+N14+P14) -> 0 | S14: =SUM(I14+K14+M14+O14+Q14) -> 0 | T14: =SUM(R14+S14) -> 0
B15: 1 | D15: 0 | E15: 0 | F15: 0 | G15: 0 | H15: =D15*(E15+F15+G15) -> 0 | I15: 0 | J15: =ROUND(H15*1.03,0) -> 0 | K15: 0 | L15: =ROUND(J15*1.03,0) -> 0 | M15: 0 | N15: =ROUND(L15*1.03,0) -> 0 | O15: 0 | P15: =ROUND(N15*1.03,0) -> 0 | Q15: 0 | R15: =SUM(H15+J15+L15+N15+P15) -> 0 | S15: =SUM(I15+K15+M15+O15+Q15) -> 0 | T15: =SUM(R15+S15) -> 0
B16: 2 | D16: 0 | E16: 0 | F16: 0 | G16: 0 | H16: 0 | I16: 0 | J16: =ROUND(H16*1.03,0) -> 0 | K16: 0 | L16: =ROUND(J16*1.03,0) -> 0 | M16: 0 | N16: =ROUND(L16*1.03,0) -> 0 | O16: 0 | P16: =ROUND(N16*1.03,0) -> 0 | Q16: 0 | R16: =SUM(H16+J16+L16+N16+P16) -> 0 | S16: 0 | T16: =SUM(R16+S16) -> 0
B17: 3 | D17: 0 | E17: 0 | F17: 0 | G17: 0 | H17: 0 | I17: 0 | J17: 0 | K17: 0 | L17: 0 | M17: 0 | N17: 0 | O17: 0 | P17: 0 | Q17: 0 | R17: 0 | S17: 0 | T17: 0
B18: 4 | D18: 0 | E18: 0 | F18: 0 | G18: 0 | H18: 0 | I18: 0 | J18: 0 | K18: 0 | L18: 0 | M18: 0 | N18: 0 | O18: 0 | P18: 0 | Q18: 0 | R18: 0 | S18: 0 | T18: 0
B19: 5 | D19: 0 | E19: 0 | F19: 0 | G19: 0 | H19: 0 | I19: 0 | J19: 0 | K19: 0 | L19: 0 | M19: 0 | N19: 0 | O19: 0 | P19: 0 | Q19: 0 | R19: 0 | S19: 0 | T19: 0
B20: 6 | D20: 0 | E20: 0 | F20: 0 | G20: 0 | H20: 0 | I20: 0 | J20: 0 | K20: 0 | L20: 0 | M20: 0 | N20: 0 | O20: 0 | P20: 0 | Q20: 0 | R20: 0 | S20: 0 | T20: 0
B21: 7 | D21: 0 | E21: 0 | F21: 0 | G21: 0 | H21: 0 | I21: 0 | J21: 0 | K21: 0 | L21: 0 | M21: 0 | N21: 0 | O21: 0 | P21: 0 | Q21: 0 | R21: 0 | S21: 0 | T21: 0
B22: 8 | D22: 0 | E22: 0 | F22: 0 | G22: 0 | H22: 0 | I22: 0 | J22: 0 | K22: 0 | L22: 0 | M22: 0 | N22: 0 | O22: 0 | P22: 0 | Q22: 0 | R22: 0 | S22: 0 | T22: 0
B23: 9 | D23: 0 | E23: 0 | F23: 0 | G23: 0 | H23: 0 | I23: 0 | J23: 0 | K23: 0 | L23: 0 | M23: 0 | N23: 0 | O23: 0 | P23: 0 | Q23: 0 | R23: 0 | S23: 0 | T23: 0
E24: Calendar | G24: Number of
A25: B | C25: Other Personnel | D25: Monthly | E25: Months | G25: persons | H25: =SUM(H26:H37) -> 0 | I25: 0 | J25: 0 | K25: 0 | L25: 0 | M25: 0 | N25: 0 | O25: 0 | P25: 0 | Q25: 0 | R25: =SUM(H25+J25+L25+N25+P25) -> 0 | S25: =SUM(I25+K25+M25+O25+Q25) -> 0 | T25: =SUM(R25+S25) -> 0
B26: 1 | C26: Post Doc | D26: 0 | E26: 0 | G26: 0 | H26: =D26*(E26)*G26 -> 0 | I26: 0 | J26: =ROUND(H26*1.03,0) -> 0 | K26: 0 | L26: =ROUND(J26*1.03,0) -> 0 | M26: 0 | N26: =ROUND(L26*1.03,0) -> 0 | O26: 0 | P26: =ROUND(N26*1.03,0) -> 0 | Q26: 0 | R26: =SUM(H26+J26+L26+N26+P26) -> 0 | S26: 0 | T26: =SUM(R26+S26) -> 0
B27: 2 | C27: Post Doc | D27: 0 | E27: 0 | G27: 0 | H27: 0 | I27: 0 | J27: =ROUND(H27*1.03,0) -> 0 | K27: 0 | L27: =ROUND(J27*1.03,0) -> 0 | M27: 0 | N27: =ROUND(L27*1.03,0) -> 0 | O27: 0 | P27: =ROUND(N27*1.03,0) -> 0 | Q27: 0 | R27: 0 | S27: 0 | T27: 0
B28: 3 | C28: Research Asst-Halftime | D28: 0 | E28: 0 | G28: 0 | H28: 0 | I28: 0 | J28: 0 | K28: 0 | L28: 0 | M28: 0 | N28: 0 | O28: 0 | P28: 0 | Q28: 0 | R28: 0 | S28: 0 | T28: 0
B29: 4 | C29: Research Asst-Halftime | D29: 0 | E29: 0 | G29: 0 | H29: 0 | I29: 0 | J29: 0 | K29: 0 | L29: 0 | M29: 0 | N29: 0 | O29: 0 | P29: 0 | Q29: 0 | R29: 0 | S29: 0 | T29: 0
B30: 5 | C30: Hourly Undergraduate student | D30: 0 | E30: 0 | G30: 0 | H30: 0 | I30: 0 | J30: 0 | K30: 0 | L30: 0 | M30: 0 | N30: 0 | O30: 0 | P30: 0 | Q30: 0 | R30: 0 | S30: 0 | T30: 0
B31: 6 | C31: Hourly Undergraduate student | D31: 0 | E31: 0 | G31: 0 | H31: 0 | I31: 0 | J31: 0 | K31: 0 | L31: 0 | M31: 0 | N31: 0 | O31: 0 | P31: 0 | Q31: 0 | R31: 0 | S31: 0 | T31: 0
B32: 7 | C32: P&S | D32: 0 | E32: 0 | G32: 0 | H32: 0 | I32: 0 | J32: 0 | K32: 0 | L32: 0 | M32: 0 | N32: 0 | O32: 0 | P32: 0 | Q32: 0 | R32: 0 | S32: 0 | T32: 0
B33: 8 | C33: P&S | D33: 0 | E33: 0 | G33: 0 | H33: 0 | I33: 0 | J33: 0 | K33: 0 | L33: 0 | M33: 0 | N33: 0 | O33: 0 | P33: 0 | Q33: 0 | R33: 0 | S33: 0 | T33: 0
B34: 9 | C34: Secretarial/Clerical | D34: 0 | E34: 0 | G34: 0 | H34: 0 | I34: 0 | J34: 0 | K34: 0 | L34: 0 | M34: 0 | N34: 0 | O34: 0 | P34: 0 | Q34: 0 | R34: 0 | S34: 0 | T34: 0
B35: 10 | C35: Secretarial/Clerical | D35: 0 | E35: 0 | G35: 0 | H35: 0 | I35: 0 | J35: 0 | K35: 0 | L35: 0 | M35: 0 | N35: 0 | O35: 0 | P35: 0 | Q35: 0 | R35: 0 | S35: 0 | T35: 0
B36: 11 | C36: Non-Student Hourly | D36: 0 | E36: 0 | G36: 0 | H36: 0 | I36: 0 | J36: 0 | K36: 0 | L36: 0 | M36: 0 | N36: 0 | O36: 0 | P36: 0 | Q36: 0 | R36: 0 | S36: 0 | T36: 0
B37: 12 | C37: Non-Student Hourly | D37: 0 | E37: 0 | G37: 0 | H37: 0 | I37: 0 | J37: 0 | K37: 0 | L37: 0 | M37: 0 | N37: 0 | O37: 0 | P37: 0 | Q37: 0 | R37: 0 | S37: 0 | T37: 0
C39: Subtotal: Salaries and Wages | H39: =+H14+H25 -> 0 | I39: 0 | J39: 0 | K39: 0 | L39: 0 | M39: 0 | N39: 0 | O39: 0 | P39: 0 | Q39: 0 | R39: =SUM(H39+J39+L39+N39+P39) -> 0 | S39: =SUM(I39+K39+M39+O39+Q39) -> 0 | T39: =SUM(R39+S39) -> 0
A41: C | C41: Fringe Benefits | D41: Rate | H41: =SUM(H42:H62) -> 0 | I41: 0 | J41: 0 | K41: 0 | L41: 0 | M41: 0 | N41: 0 | O41: 0 | P41: 0 | Q41: 0 | R41: =SUM(H41+J41+L41+N41+P41) -> 0 | S41: =SUM(I41+K41+M41+O41+Q41) -> 0 | T41: =SUM(R41+S41) -> 0
C42: =+C15 -> 0 | D42: 0.275 | H42: =ROUND(D42*H15,0) -> 0 | I42: =ROUND(D42*I15,0) -> 0 | J42: =ROUND(D42*J15,0) -> 0 | K42: =ROUND(D42*K15,0) -> 0 | L42: =ROUND(D42*L15,0) -> 0 | M42: =ROUND(D42*M15,0) -> 0 | N42: =ROUND(D42*N15,0) -> 0 | O42: =ROUND(D42*O15,0) -> 0 | P42: =ROUND(D42*P15,0) -> 0 | Q42: =ROUND(D42*Q15,0) -> 0 | R42: =SUM(H42+J42+L42+N42+P42) -> 0 | S42: 0 | T42: =SUM(R42+S42) -> 0
C43: =+C16 -> 0 | D43: 0.275 | H43: =ROUND(D43*H16,0) -> 0 | I43: =ROUND(D43*I16,0) -> 0 | J43: =ROUND(D43*J16,0) -> 0 | K43: =ROUND(D43*K16,0) -> 0 | L43: =ROUND(D43*L16,0) -> 0 | M43: =ROUND(D43*M16,0) -> 0 | N43: =ROUND(D43*N16,0) -> 0 | O43: =ROUND(D43*O16,0) -> 0 | P43: =ROUND(D43*P16,0) -> 0 | Q43: =ROUND(D43*Q16,0) -> 0 | R43: 0 | S43: 0 | T43: 0
C44: =+C17 -> 0 | D44: 0.275 | H44: 0 | I44: 0 | J44: 0 | K44: 0 | L44: 0 | M44: 0 | N44: 0 | O44: 0 | P44: 0 | Q44: 0 | R44: 0 | S44: 0 | T44: 0
C45: =+C18 -> 0 | D45: 0.275 | H45: 0 | I45: 0 | J45: 0 | K45: 0 | L45: 0 | M45: 0 | N45: 0 | O45: 0 | P45: 0 | Q45: 0 | R45: 0 | S45: 0 | T45: 0
C46: =+C19 -> 0 | D46: 0.275 | H46: 0 | I46: 0 | J46: 0 | K46: 0 | L46: 0 | M46: 0 | N46: 0 | O46: 0 | P46: 0 | Q46: 0 | R46: 0 | S46: 0 | T46: 0
C47: =C20 -> 0 | D47: 0.275 | H47: 0 | I47: 0 | J47: 0 | K47: 0 | L47: 0 | M47: 0 | N47: 0 | O47: 0 | P47: 0 | Q47: 0 | R47: 0 | S47: 0 | T47: 0
C48: =C21 -> 0 | D48: 0.275 | H48: 0 | I48: 0 | J48: 0 | K48: 0 | L48: 0 | M48: 0 | N48: 0 | O48: 0 | P48: 0 | Q48: 0 | R48: 0 | S48: 0 | T48: 0
C49: =C22 -> 0 | D49: 0.275 | H49: 0 | I49: 0 | J49: 0 | K49: 0 | L49: 0 | M49: 0 | N49: 0 | O49: 0 | P49: 0 | Q49: 0 | R49: 0 | S49: 0 | T49: 0
C50: =C23 -> 0 | D50: 0.275 | H50: 0 | I50: 0 | J50: 0 | K50: 0 | L50: 0 | M50: 0 | N50: 0 | O50: 0 | P50: 0 | Q50: 0 | R50: 0 | S50: 0 | T50: 0
C51: =+C26 -> Post Doc | D51: 0.33 | H51: =ROUND(D51*H26,0) -> 0 | I51: =ROUND(D51*I26,0) -> 0 | J51: =ROUND(D51*J26,0) -> 0 | K51: =ROUND(D51*K26,0) -> 0 | L51: =ROUND(D51*L26,0) -> 0 | M51: =ROUND(D51*M26,0) -> 0 | N51: =ROUND(D51*N26,0) -> 0 | O51: =ROUND(D51*O26,0) -> 0 | P51: =ROUND(D51*P26,0) -> 0 | Q51: =ROUND(D51*Q26,0) -> 0 | R51: 0 | S51: 0 | T51: 0
C52: Post Doc | D52: 0.33 | H52: =ROUND(D52*H27,0) -> 0 | I52: =ROUND(D52*I27,0) -> 0 | J52: =ROUND(D52*J27,0) -> 0 | K52: =ROUND(D52*K27,0) -> 0 | L52: =ROUND(D52*L27,0) -> 0 | M52: =ROUND(D52*M27,0) -> 0 | N52: =ROUND(D52*N27,0) -> 0 | O52: =ROUND(D52*O27,0) -> 0 | P52: =ROUND(D52*P27,0) -> 0 | Q52: =ROUND(D52*Q27,0) -> 0 | R52: 0 | S52: 0 | T52: 0
C53: Research Asst-Halftime | D53: 0.078 | H53: 0 | I53: 0 | J53: 0 | K53: 0 | L53: 0 | M53: 0 | N53: 0 | O53: 0 | P53: 0 | Q53: 0 | R53: 0 | S53: 0 | T53: 0
C54: Research Asst-Halftime | D54: 0.078 | H54: 0 | I54: 0 | J54: 0 | K54: 0 | L54: 0 | M54: 0 | N54: 0 | O54: 0 | P54: 0 | Q54: 0 | R54: 0 | S54: 0 | T54: 0
C55: Hourly Undergraduate student | D55: 0.006 | H55: 0 | I55: 0 | J55: 0 | K55: 0 | L55: 0 | M55: 0 | N55: 0 | O55: 0 | P55: 0 | Q55: 0 | R55: 0 | S55: 0 | T55: 0
C56: Hourly Undergraduate student | D56: 0.006 | H56: 0 | I56: 0 | J56: 0 | K56: 0 | L56: 0 | M56: 0 | N56: 0 | O56: 0 | P56: 0 | Q56: 0 | R56: 0 | S56: 0 | T56: 0
C57: =+C32 -> P&S | D57: 0.345 | H57: 0 | I57: 0 | J57: 0 | K57: 0 | L57: 0 | M57: 0 | N57: 0 | O57: 0 | P57: 0 | Q57: 0 | R57: 0 | S57: 0 | T57: 0
C58: P&S | D58: 0.345 | H58: 0 | I58: 0 | J58: 0 | K58: 0 | L58: 0 | M58: 0 | N58: 0 | O58: 0 | P58: 0 | Q58: 0 | R58: 0 | S58: 0 | T58: 0
C59: Secretarial/Clerical | D59: 0.438 | H59: 0 | I59: 0 | J59: 0 | K59: 0 | L59: 0 | M59: 0 | N59: 0 | O59: 0 | P59: 0 | Q59: 0 | R59: 0 | S59: 0 | T59: 0
C60: Secretarial/Clerical | D60: 0.438 | H60: 0 | I60: 0 | J60: 0 | K60: 0 | L60: 0 | M60: 0 | N60: 0 | O60: 0 | P60: 0 | Q60: 0 | R60: 0 | S60: 0 | T60: 0
C61: Non-Student Hourly | D61: 0.168 | H61: 0 | I61: 0 | J61: 0 | K61: 0 | L61: 0 | M61: 0 | N61: 0 | O61: 0 | P61: 0 | Q61: 0 | R61: 0 | S61: 0 | T61: 0
C62: Non-Student Hourly | D62: 0.168 | H62: 0 | I62: 0 | J62: 0 | K62: 0 | L62: 0 | M62: 0 | N62: 0 | O62: 0 | P62: 0 | Q62: 0 | R62: 0 | S62: 0 | T62: 0
C64: Subtotal: Salaries, Wages, and Benefits | H64: =H39+H41 -> 0 | I64: =I39+I41 -> 0 | J64: =J39+J41 -> 0 | K64: 0 | L64: 0 | M64: 0 | N64: 0 | O64: 0 | P64: 0 | Q64: 0 | R64: =SUM(H64+J64+L64+N64+P64) -> 0 | S64: =SUM(I64+K64+M64+O64+Q64) -> 0 | T64: =SUM(R64+S64) -> 0
A66: D | C66: Equipment (List Item and $ amount for each item > $5k) | H66: =SUM(H67:H68) -> 0 | I66: 0 | J66: 0 | K66: 0 | L66: 0 | M66: 0 | N66: 0 | O66: 0 | P66: 0 | Q66: 0 | R66: =SUM(H66+J66+L66+N66+P66) -> 0 | S66: 0 | T66: =SUM(R66+S66) -> 0
C67: 1 | R67: 0 | S67: 0 | T67: =SUM(R67+S67) -> 0
C68: 2 | R68: 0 | S68: 0 | T68: =SUM(R68+S68) -> 0
A70: E | C70: Travel | H70: =SUM(H71:H72) -> 0 | I70: 0 | J70: 0 | K70: 0 | L70: 0 | M70: 0 | N70: 0 | O70: 0 | P70: 0 | Q70: 0 | R70: =SUM(H70+J70+L70+N70+P70) -> 0 | S70: 0 | T70: =SUM(R70+S70) -> 0
C71: 1. Domestic Travel | H71: 0 | I71: 0 | J71: 0 | L71: 0 | N71: 0 | P71: 0 | R71: 0 | S71: 0 | T71: =SUM(R71+S71) -> 0
C72: 2. Foreign Travel | H72: 0 | J72: 0 | L72: 0 | N72: 0 | P72: 0 | R72: 0 | S72: 0 | T72: =SUM(R72+S72) -> 0
A74: F | C74: Participant Support Cost | H74: =SUM(H75:H78) -> 0 | I74: 0 | J74: 0 | K74: 0 | L74: 0 | M74: 0 | N74: 0 | O74: 0 | P74: 0 | Q74: 0 | R74: =SUM(H74+J74+L74+N74+P74) -> 0 | S74: =SUM(I74+K74+M74+O74+Q74) -> 0 | T74: =SUM(R74+S74) -> 0
C75: 1. Stipend | H75: 0 | J75: 0 | L75: 0 | N75: 0 | P75: 0 | R75: =SUM(H75+J75+L75+N75+P75) -> 0 | S75: 0 | T75: =SUM(R75+S75) -> 0
C76: 2. Travel | H76: 0 | J76: 0 | L76: 0 | N76: 0 | P76: 0 | R76: 0 | S76: 0 | T76: =SUM(R76+S76) -> 0
C77: 3. Subsistence | H77: 0 | J77: 0 | L77: 0 | N77: 0 | P77: 0 | R77: 0 | S77: 0 | T77: =SUM(R77+S77) -> 0
C78: 4. Other | H78: 0 | J78: 0 | L78: 0 | N78: 0 | P78: 0 | R78: 0 | S78: 0 | T78: =SUM(R78+S78) -> 0
A80: G | C80: Other Direct Costs | H80: =SUM(H81:H97) -> 0 | I80: 0 | J80: 0 | K80: 0 | L80: 0 | M80: 0 | N80: 0 | O80: 0 | P80: 0 | Q80: 0 | R80: =SUM(H80+J80+L80+N80+P80) -> 0 | S80: =SUM(I80+K80+M80+O80+Q80) -> 0 | T80: =SUM(R80+S80) -> 0
B81: 1 | C81: Materials and Supplies | H81: 0 | J81: 0 | L81: 0 | N81: 0 | P81: 0 | R81: =SUM(H81+J81+L81+N81+P81) -> 0 | S81: 0 | T81: =SUM(R81+S81) -> 0
B82: 2 | C82: Publication cost | H82: 0 | J82: 0 | L82: 0 | N82: 0 | P82: 0 | R82: 0 | S82: 0 | T82: 0
B83: 3 | C83: Consultant/Professional Services | H83: 0 | J83: 0 | L83: 0 | N83: 0 | P83: 0 | R83: =SUM(H83+J83+L83+N83+P83) -> 0 | S83: =SUM(I83+K83+M83+O83+Q83) -> 0 | T83: =SUM(R83+S83) -> 0
B84: 3 | C84: Computing support | H84: 0 | J84: 0 | L84: 0 | N84: 0 | P84: 0 | R84: 0 | S84: 0 | T84: 0
B85: 4 | C85: Equipment/Facility Rental or User Fee | H85: 0 | J85: 0 | L85: 0 | N85: 0 | P85: 0 | R85: 0 | S85: 0 | T85: 0
B86: 4 | C86: Alterations and Renovations (not included in MTDC) | H86: 0 | J86: 0 | L86: 0 | N86: 0 | P86: 0 | R86: =SUM(H86+J86+L86+N86+P86) -> 0 | S86: =SUM(I86+K86+M86+O86+Q86) -> 0 | T86: =SUM(R86+S86) -> 0
B87: 5 | C87: Subcontractor1 - Subject to IDC (first $25,000) | E87: See notes below | H87: 0 | J87: 0 | L87: 0 | N87: 0 | P87: 0 | R87: 0 | S87: 0 | T87: 0
C88: NOT subject to IDC (Amount over $25,000) | H88: 0 | J88: 0 | L88: 0 | N88: 0 | P88: 0 | R88: 0 | S88: 0 | T88: 0
B89: 6 | C89: Subcontractor2 - Subject to IDC (first $25,000) | E89: See notes below | H89: 0 | J89: 0 | L89: 0 | N89: 0 | P89: 0 | R89: 0 | S89: 0 | T89: 0
C90: NOT subject to IDC (Amount over $25,000) | H90: 0 | J90: 0 | L90: 0 | N90: 0 | P90: 0 | R90: 0 | S90: 0 | T90: 0
B91: 7 | C91: Tuition-(most majors) | E91: (Click on "Tuition" sheet) | H91: =Tuition!K6 -> 0 | J91: =Tuition!M6 -> 0 | L91: =Tuition!O6 -> 0 | N91: =Tuition!Q6 -> 0 | P91: =Tuition!S6 -> 0 | R91: 0 | S91: 0 | T91: 0
B92: 8 | C92: Tuition-Engineering & Architecture | E92: (Click on "Tuition" sheet) | H92: =Tuition!K26 -> 0 | J92: =Tuition!M26 -> 0 | L92: =Tuition!O26 -> 0 | N92: =Tuition!Q26 -> 0 | P92: =Tuition!S26 -> 0 | R92: 0 | S92: 0 | T92: 0
B93: 8 | C93: Tuition-Business & STB | E93: (Click on "Tuition" sheet) | H93: =Tuition!K46 -> 0 | J93: =Tuition!M46 -> 0 | L93: =Tuition!O46 -> 0 | N93: =Tuition!Q46 -> 0 | P93: =Tuition!S46 -> 0 | R93: =SUM(H93+J93+L93+N93+P93) -> 0 | S93: =SUM(I93+K93+M93+O93+Q93) -> 0 | T93: =SUM(R93+S93) -> 0
C94: Tuition-Specific Grad Depts | E94: (Click on "Tuition" sheet) | H94: =Tuition!K67 -> 0 | J94: =Tuition!M67 -> 0 | L94: =Tuition!O67 -> 0 | N94: =Tuition!Q67 -> 0 | P94: =Tuition!S67 -> 0 | R94: =H94+J94+L94+N94+P94 -> 0 | S94: =I94+K94+M94+O94+Q94 -> 0 | T94: =S94+R94 -> 0
C95: Tuition-Experiential Learning Majors | E95: (Click on "Tuition" sheet) | H95: =Tuition!K88 -> 0 | J95: =Tuition!M88 -> 0 | L95: =Tuition!O88 -> 0 | N95: =Tuition!Q88 -> 0 | P95: =Tuition!S88 -> 0 | R95: =H95+J95+L95+N95+P95 -> 0 | S95: =SUM(I95+K95+M95+O95+Q95) -> 0 | T95: =SUM(R95+S95) -> 0
B96: 9 | C96: Other | H96: 0 | J96: 0 | L96: 0 | N96: 0 | P96: 0 | R96: =SUM(H96+J96+L96+N96+P96) -> 0 | S96: 0 | T96: 0
B97: 10 | C97: Other | H97: 0 | J97: 0 | L97: 0 | N97: 0 | P97: 0 | R97: 0 | S97: 0 | T97: 0
C99: Subtotal: Total Direct Costs (TDC) | H99: =H64+H66+H70+H74+H80 -> 0 | I99: 0 | J99: 0 | K99: 0 | L99: 0 | M99: 0 | N99: 0 | O99: 0 | P99: 0 | Q99: 0 | R99: =SUM(H99+J99+L99+N99+P99) -> 0 | S99: =SUM(I99+K99+M99+O99+Q99) -> 0 | T99: =SUM(R99+S99) -> 0
C101: Subtotal: Modified Total Direct Costs | H101: =(H99-H66-H74-H86-H88-H90-H91-H92-H93-H94-H95) -> 0 | I101: 0 | J101: 0 | K101: 0 | L101: 0 | M101: 0 | N101: 0 | O101: 0 | P101: 0 | Q101: 0 | R101: =SUM(H101+J101+L101+N101+P101) -> 0 | S101: =SUM(I101+K101+M101+O101+Q101) -> 0 | T101: =SUM(R101+S101) -> 0
C102: [ MTDC = TDC - Tuition - Equipment - Participant Support Cost ]
A104: H | C104: Indirect Costs | D104: Rate | H104: =SUM(H105:H105) -> 0 | I104: 0 | J104: 0 | K104: 0 | L104: 0 | M104: 0 | N104: 0 | O104: 0 | P104: 0 | Q104: 0 | R104: =SUM(H104+J104+L104+N104+P104) -> 0 | S104: =SUM(I104+K104+M104+O104+Q104) -> 0 | T104: =SUM(R104+S104) -> 0
C105: IDC on MTDC | D105: =IF(G5=U4,"52% 53%",G4) -> 52% 53% | E105: [ IDC = MTDC * Indirect Rate ] | H105: =IF(G5=U4,'F&A Calculation- Sponsor Funds '!I22,IF(G5=U5,H99*G4,G4*H101)) -> 0 | I105: =IF(G5=U4,'F&A Calculations - Cost Share'!I22,IF(G5=U5,I99*G4,G4*I101)) -> 0 | J105: =IF(G5=U4,'F&A Calculation- Sponsor Funds '!I32,IF(G5=U5,J99*G4,G4*J101)) -> 0 | K105: =IF(G5=U4, 'F&A Calculations - Cost Share'!I32,IF(G5=U5,K99*G4,G4*K101)) -> 0 | L105: =IF(G5=U4,'F&A Calculation- Sponsor Funds '!I42,IF(G5=U5,L99*G4,G4*L101)) -> 0 | M105: =IF(G5=U4, 'F&A Calculations - Cost Share'!I42,IF(G5=U5,M99*G4,G4*M101)) -> 0 | N105: =IF(G5=U4,'F&A Calculation- Sponsor Funds '!I52,IF(G5=U5,N99*G4,G4*N101)) -> 0 | O105: =IF(G5=U4, 'F&A Calculations - Cost Share'!I52,IF(G5=U5,O99*G4,G4*O101)) -> 0 | P105: =IF(G5=U4,'F&A Calculation- Sponsor Funds '!I62,IF(G5=U5,P99*G4,G4*P101)) -> 0 | Q105: =IF(G5=U4, 'F&A Calculations - Cost Share'!I62,IF(G5=U5,Q99*G4,G4*Q101)) -> 0 | R105: =SUM(H105+J105+L105+N105+P105) -> 0 | S105: =SUM(I105+K105+M105+O105+Q105) -> 0 | T105: =SUM(R105+S105) -> 0
A108: I | C108: Total Direct + Indirect Costs | H108: =H99+H104 -> 0 | I108: 0 | J108: 0 | K108: 0 | L108: 0 | M108: 0 | N108: 0 | O108: 0 | P108: 0 | Q108: 0 | R108: =SUM(H108+J108+L108+N108+P108) -> 0 | S108: =SUM(I108+K108+M108+O108+Q108) -> 0 | T108: =SUM(R108+S108) -> 0
C114: NOTES:
C116: This budget is completely adjustable. As such, you will need to double check your work and make adjustments in certain cells, such as:
C118: Subcontracts - Verify that only the first $25K of each subcontract is charged IDC. You might need to adjust the MTDC for each year of each subcontract.
C123: Benefits: | H123: Indirect Cost Categories:
C124: A&B | D124: 0.275
C125: C | D125: 0.078 | H125: 52 or 53% | I125: On-Campus Organized Research
C126: D | D126: 0.33 | H126: 0.53 | I126: On Campus Instruction
C127: P | D127: 0.345 | H127: 0.33 | I127: On-Campus Other Sponsored Activities
C128: E | D128: 0.438 | H128: 0.26 | I128: Off-Campus All Programs
C129: XH (Student hourly) | D129: 0.006
C130: XH (Non-Student hourly) | D130: 0.168
C132: Post Doc Salary Range:
C134: http://www.grad-college.iastate.edu/post_doc/policies.php

Sheet F&A Calculation- Sponsor Funds
D1: Tool to Calculate Split F&A Rates for a Project Period
A3: INSTRUCTIONS: | B3: Use this tool to help you calculate split F&A for budgeting purposes. By entering the Project Budget amount, and start and end dates, this tool will calculate the correct F&A rate for the period.
B4: The only fields needed are the Start Date, End Date, and the Modified Total Direct Cost Amount. This tool will calculate the F&A rate and amount based on the reference table shown.
B6: Please be aware that if your Project period Start and End dates span multiple F&A effective dates, you will need to add the additional effective dates and rates to the Project Activity>FA Rates tab in EFS.
B7: See the job aid: Setting up F&A on a Project Using Split Rates
B9: This tool is set up to accommodate up to 7 separate Project Budget periods and will provide a Grand Total of all budget periods.
D11: Total MTDC | I11: Total F&A
A12: PROJECT GRAND TOTALS: | D12: =D22+D32+D42+D52+D62+D72+D82 -> 0 | I12: =I22+I32+I42+I52+I62+I72+I82 -> 0
A15: 1st Budget Period | B15: Enter | C15: Calculated | D15: Enter Amount: | E15: Calculated | G15: Calculated | I15: Calculated | J15: Calculated | K15: Reference Only Rate Table:
B16: Dates: | C16: Total # Months | D16: Total MTDC for the Period | E16: MTDC Daily Rate | F16: Days at Rate | G16: Months at Rate | H16: Use Rate | I16: F&A Amount | J16: MTDC Amount | K16: Use F&A Rate Effective Date | L16: F&A Rate End | M16: F&A Rate %
A17: Project Start Date | B17: =Summary!H11 -> 2018-07-01 | C17: =ROUND(IF((B17=0),0,(B18-B17))/30,0) -> 12 | D17: =Summary!H101 -> 0 | E17: =IF(ISERROR(D17/F22),0,(D17/F22)) -> 0 | F17: =IF(OR($B$18<$K17,$B$17>$L17),0,(MIN($B$18,$L17)-MAX($B$17,$K17)+1)) -> 0 | G17: =ROUND(IF(ISERROR(F17/365),0,(F17/365)*12),2) -> 0 | H17: =IF(OR($B$18<$K17,$B$17>$L17),0,M17) -> 0 | I17: =(F17*$E$17)*H17 -> 0 | J17: =IF(ISERROR(I17/H17),0,(I17/H17)) -> 0 | K17: 2016-07-01 | L17: 2017-06-30 | M17: 0.52
A18: Project End Date | B18: =Summary!I11 -> 2019-06-30 | F18: =IF(OR($B$18<$K18,$B$17>$L18),0,(MIN($B$18,$L18)-MAX($B$17,$K18)+1)) -> 0 | G18: =ROUND(IF(ISERROR(F18/365),0,(F18/365)*12),2) -> 0 | H18: =IF(OR($B$18<$K18,$B$17>$L18),0,M18) -> 0 | I18: =(F18*$E$17)*H18 -> 0 | J18: =IF(ISERROR(I18/H18),0,(I18/H18)) -> 0 | K18: 2017-07-01 | L18: 2018-06-30 | M18: 0.52
F19: =IF(OR($B$18<$K19,$B$17>$L19),0,(MIN($B$18,$L19)-MAX($B$17,$K19)+1)) -> 365 | G19: =ROUND(IF(ISERROR(F19/365),0,(F19/365)*12),2) -> 12 | H19: =IF(OR($B$18<$K19,$B$17>$L19),0,M19) -> 0.53 | I19: =(F19*$E$17)*H19 -> 0 | J19: =IF(ISERROR(I19/H19),0,(I19/H19)) -> 0 | K19: 2018-07-01 | L19: 2019-06-30 | M19: 0.53
F20: =IF(OR($B$18<$K20,$B$17>$L20),0,(MIN($B$18,$L20)-MAX($B$17,$K20)+1)) -> 0 | G20: =ROUND(IF(ISERROR(F20/365),0,(F20/365)*12),2) -> 0 | H20: =IF(OR($B$18<$K20,$B$17>$L20),0,M20) -> 0 | I20: =(F20*$E$17)*H20 -> 0 | J20: =IF(ISERROR(I20/H20),0,(I20/H20)) -> 0 | K20: 2019-07-01 | L20: 2020-06-30 | M20: 0.53
F21: =IF(OR($B$18<$K21,$B$17>$L21),0,(MIN($B$18,$L21)-MAX($B$17,$K21)+1)) -> 0 | G21: =ROUND(IF(ISERROR(F21/365),0,(F21/365)*12),2) -> 0 | H21: =IF(OR($B$18<$K21,$B$17>$L21),0,M21) -> 0 | I21: =(F21*$E$17)*H21 -> 0 | J21: =IF(ISERROR(I21/H21),0,(I21/H21)) -> 0 | K21: 2020-07-01 | L21: 2030-06-30 | M21: 0.53
B22: Totals: | D22: =SUM(D17:D21) -> 0 | F22: =SUM(F17:F21) -> 365 | G22: =SUM(G17:G21) -> 12 | H22: =AVERAGEIF(H17:H21,"<>0") -> 0.53 | I22: =SUM(I17:I21) -> 0 | J22: =SUM(J17:J21) -> 0
A25: 2nd Budget Period | B25: Enter | C25: Calculated | D25: Enter Amount: | E25: Calculated | G25: Calculated | I25: Calculated | J25: Calculated
B26: Dates: | C26: Total # Months | D26: Total MTDC for the Period | E26: MTDC Daily Rate | F26: Days at Rate | G26: Months at Rate | H26: Use Rate | I26: F&A Amount | J26: MTDC Amount
A27: Project Start Date | B27: =Summary!J11 -> 2019-07-01 | C27: =ROUND(IF((B27=0),0,(B28-B27))/30,0) -> 12 | D27: =Summary!J101 -> 0 | E27: =IF(ISERROR(D27/F32),0,(D27/F32)) -> 0 | F27: =IF(OR($B$28<$K17,$B$27>$L17),0,(MIN($B$28,$L17)-MAX($B$27,$K17)+1)) -> 0 | G27: =ROUND(IF(ISERROR(F27/365),0,(F27/365))*12,0) -> 0 | H27: =IF(OR($B$28<$K17,$B$27>$L17),0,M17) -> 0 | I27: =(F27*$E$27)*H27 -> 0 | J27: =IF(ISERROR(I27/H27),0,(I27/H27)) -> 0
A28: Project End Date | B28: =Summary!K11 -> 2020-06-30 | F28: =IF(OR($B$28<$K18,$B$27>$L18),0,(MIN($B$28,$L18)-MAX($B$27,$K18)+1)) -> 0 | G28: =ROUND(IF(ISERROR(F28/365),0,(F28/365))*12,0) -> 0 | H28: =IF(OR($B$28<$K18,$B$27>$L18),0,M18) -> 0 | I28: =(F28*$E$27)*H28 -> 0 | J28: =IF(ISERROR(I28/H28),0,(I28/H28)) -> 0
F29: =IF(OR($B$28<$K19,$B$27>$L19),0,(MIN($B$28,$L19)-MAX($B$27,$K19)+1)) -> 0 | G29: =ROUND(IF(ISERROR(F29/365),0,(F29/365))*12,0) -> 0 | H29: =IF(OR($B$28<$K19,$B$27>$L19),0,M19) -> 0 | I29: =(F29*$E$27)*H29 -> 0 | J29: =IF(ISERROR(I29/H29),0,(I29/H29)) -> 0
F30: =IF(OR($B$28<$K20,$B$27>$L20),0,(MIN($B$28,$L20)-MAX($B$27,$K20)+1)) -> 366 | G30: =ROUND(IF(ISERROR(F30/365),0,(F30/365))*12,0) -> 12 | H30: =IF(OR($B$28<$K20,$B$27>$L20),0,M20) -> 0.53 | I30: =(F30*$E$27)*H30 -> 0 | J30: =IF(ISERROR(I30/H30),0,(I30/H30)) -> 0
F31: =IF(OR($B$28<$K21,$B$27>$L21),0,(MIN($B$28,$L21)-MAX($B$27,$K21)+1)) -> 0 | G31: =ROUND(IF(ISERROR(F31/365),0,(F31/365))*12,0) -> 0 | H31: =IF(OR($B$28<$K21,$B$27>$L21),0,M21) -> 0 | I31: =(F31*$E$27)*H31 -> 0 | J31: =IF(ISERROR(I31/H31),0,(I31/H31)) -> 0
B32: Totals: | D32: =SUM(D27:D31) -> 0 | F32: =SUM(F27:F31) -> 366 | G32: =SUM(G27:G31) -> 12 | H32: =AVERAGEIF(H27:H31,"<>0") -> 0.53 | I32: =SUM(I27:I31) -> 0 | J32: =SUM(J27:J31) -> 0
A35: 3rd Budget Period | B35: Enter | C35: Calculated | D35: Enter Amount: | E35: Calculated | G35: Calculated | I35: Calculated | J35: Calculated
B36: Dates: | C36: Total # Months | D36: Total MTDC for the Period | E36: MTDC Daily Rate | F36: Days at Rate | G36: Months at Rate | H36: Use Rate | I36: F&A Amount | J36: MTDC Amount
A37: Project Start Date | B37: =Summary!L11 -> 2020-07-01 | C37: =ROUND(IF((B37=0),0,(B38-B37))/30,0) -> 12 | D37: =Summary!L101 -> 0 | E37: =IF(ISERROR(D37/F42),0,(D37/F42)) -> 0 | F37: =IF(OR($B$38<$K17,$B$37>$L17),0,(MIN($B$38,$L17)-MAX($B$37,$K17)+1)) -> 0 | G37: =ROUND(IF(ISERROR(F37/365),0,(F37/365))*12,0) -> 0 | H37: =IF(OR($B$38<$K17,$B$37>$L17),0,M17) -> 0 | I37: =(F37*$E$37)*H37 -> 0 | J37: =IF(ISERROR(I37/H37),0,(I37/H37)) -> 0
A38: Project End Date | B38: =Summary!M11 -> 2021-06-30 | F38: =IF(OR($B$38<$K18,$B$37>$L18),0,(MIN($B$38,$L18)-MAX($B$37,$K18)+1)) -> 0 | G38: =ROUND(IF(ISERROR(F38/365),0,(F38/365))*12,0) -> 0 | H38: =IF(OR($B$38<$K18,$B$37>$L18),0,M18) -> 0 | I38: =(F38*$E$37)*H38 -> 0 | J38: =IF(ISERROR(I38/H38),0,(I38/H38)) -> 0
F39: =IF(OR($B$38<$K19,$B$37>$L19),0,(MIN($B$38,$L19)-MAX($B$37,$K19)+1)) -> 0 | G39: =ROUND(IF(ISERROR(F39/365),0,(F39/365))*12,0) -> 0 | H39: =IF(OR($B$38<$K19,$B$37>$L19),0,M19) -> 0 | I39: =(F39*$E$37)*H39 -> 0 | J39: =IF(ISERROR(I39/H39),0,(I39/H39)) -> 0
F40: =IF(OR($B$38<$K20,$B$37>$L20),0,(MIN($B$38,$L20)-MAX($B$37,$K20)+1)) -> 0 | G40: =ROUND(IF(ISERROR(F40/365),0,(F40/365))*12,0) -> 0 | H40: =IF(OR($B$38<$K20,$B$37>$L20),0,M20) -> 0 | I40: =(F40*$E$37)*H40 -> 0 | J40: =IF(ISERROR(I40/H40),0,(I40/H40)) -> 0
F41: =IF(OR($B$38<$K21,$B$37>$L21),0,(MIN($B$38,$L21)-MAX($B$37,$K21)+1)) -> 365 | G41: =ROUND(IF(ISERROR(F41/365),0,(F41/365))*12,0) -> 12 | H41: =IF(OR($B$38<$K21,$B$37>$L21),0,M21) -> 0.53 | I41: =(F41*$E$37)*H41 -> 0 | J41: =IF(ISERROR(I41/H41),0,(I41/H41)) -> 0
B42: Totals: | D42: =SUM(D37:D41) -> 0 | F42: =SUM(F37:F41) -> 365 | G42: =SUM(G37:G41) -> 12 | H42: =AVERAGEIF(H37:H41,"<>0") -> 0.53 | I42: =SUM(I37:I41) -> 0 | J42: =SUM(J37:J41) -> 0
A45: 4th Budget Period | B45: Enter | C45: Calculated | D45: Enter Amount: | E45: Calculated | G45: Calculated | I45: Calculated | J45: Calculated
B46: Dates: | C46: Total # Months | D46: Total MTDC for the Period | E46: MTDC Daily Rate | F46: Days at Rate | G46: Months at Rate | H46: Use Rate | I46: F&A Amount | J46: MTDC Amount
A47: Project Start Date | B47: =Summary!N11 -> 2021-07-01 | C47: =ROUND(IF((B47=0),0,(B48-B47))/30,0) -> 12 | D47: =Summary!N101 -> 0 | E47: =IF(ISERROR(D47/F52),0,(D47/F52)) -> 0 | F47: =IF(OR($B$48<$K17,$B$47>$L17),0,(MIN($B$48,$L17)-MAX($B$47,$K17)+1)) -> 0 | G47: =ROUND(IF(ISERROR(F47/365),0,(F47/365))*12,0) -> 0 | H47: =IF(OR($B$48<$K17,$B$47>$L17),0,M17) -> 0 | I47: =(F47*$E$47)*H47 -> 0 | J47: =IF(ISERROR(I47/H47),0,(I47/H47)) -> 0
A48: Project End Date | B48: =Summary!O11 -> 2022-06-30 | F48: =IF(OR($B$48<$K18,$B$47>$L18),0,(MIN($B$48,$L18)-MAX($B$47,$K18)+1)) -> 0 | G48: =ROUND(IF(ISERROR(F48/365),0,(F48/365))*12,0) -> 0 | H48: =IF(OR($B$48<$K18,$B$47>$L18),0,M18) -> 0 | I48: =(F48*$E$47)*H48 -> 0 | J48: =IF(ISERROR(I48/H48),0,(I48/H48)) -> 0
F49: =IF(OR($B$48<$K19,$B$47>$L19),0,(MIN($B$48,$L19)-MAX($B$47,$K19)+1)) -> 0 | G49: =ROUND(IF(ISERROR(F49/365),0,(F49/365))*12,0) -> 0 | H49: =IF(OR($B$48<$K19,$B$47>$L19),0,M19) -> 0 | I49: =(F49*$E$47)*H49 -> 0 | J49: =IF(ISERROR(I49/H49),0,(I49/H49)) -> 0
F50: =IF(OR($B$48<$K20,$B$47>$L20),0,(MIN($B$48,$L20)-MAX($B$47,$K20)+1)) -> 0 | G50: =ROUND(IF(ISERROR(F50/365),0,(F50/365))*12,0) -> 0 | H50: =IF(OR($B$48<$K20,$B$47>$L20),0,M20) -> 0 | I50: =(F50*$E$47)*H50 -> 0 | J50: =IF(ISERROR(I50/H50),0,(I50/H50)) -> 0
F51: =IF(OR($B$48<$K21,$B$47>$L21),0,(MIN($B$48,$L21)-MAX($B$47,$K21)+1)) -> 365 | G51: =ROUND(IF(ISERROR(F51/365),0,(F51/365))*12,0) -> 12 | H51: =IF(OR($B$48<$K21,$B$47>$L21),0,M21) -> 0.53 | I51: =(F51*$E$47)*H51 -> 0 | J51: =IF(ISERROR(I51/H51),0,(I51/H51)) -> 0
B52: Totals: | D52: =SUM(D47:D51) -> 0 | F52: =SUM(F47:F51) -> 365 | G52: =SUM(G47:G51) -> 12 | H52: =AVERAGEIF(H47:H51,"<>0") -> 0.53 | I52: =SUM(I47:I51) -> 0 | J52: =SUM(J47:J51) -> 0
A55: 5th Budget Period | B55: Enter | C55: Calculated | D55: Enter Amount: | E55: Calculated | G55: Calculated | I55: Calculated | J55: Calculated
B56: Dates: | C56: Total # Months | D56: Total MTDC for the Period | E56: MTDC Daily Rate | F56: Days at Rate | G56: Months at Rate | H56: Use Rate | I56: F&A Amount | J56: MTDC Amount
A57: Project Start Date | B57: =Summary!P11 -> 2022-07-01 | C57: =ROUND(IF((B57=0),0,(B58-B57))/30,0) -> 12 | D57: =Summary!P101 -> 0 | E57: =IF(ISERROR(D57/F62),0,(D57/F62)) -> 0 | F57: =IF(OR($B$58<$K17,$B$57>$L17),0,(MIN($B$58,$L17)-MAX($B$57,$K17)+1)) -> 0 | G57: =ROUND(IF(ISERROR(F57/365),0,(F57/365))*12,0) -> 0 | H57: =IF(OR($B$58<$K17,$B$57>$L17),0,M17) -> 0 | I57: =(F57*$E$57)*H57 -> 0 | J57: =IF(ISERROR(I57/H57),0,(I57/H57)) -> 0
A58: Project End Date | B58: =Summary!Q11 -> 2023-06-30 | F58: =IF(OR($B$58<$K18,$B$57>$L18),0,(MIN($B$58,$L18)-MAX($B$57,$K18)+1)) -> 0 | G58: =ROUND(IF(ISERROR(F58/365),0,(F58/365))*12,0) -> 0 | H58: =IF(OR($B$58<$K18,$B$57>$L18),0,M18) -> 0 | I58: =(F58*$E$57)*H58 -> 0 | J58: =IF(ISERROR(I58/H58),0,(I58/H58)) -> 0
F59: =IF(OR($B$58<$K19,$B$57>$L19),0,(MIN($B$58,$L19)-MAX($B$57,$K19)+1)) -> 0 | G59: =ROUND(IF(ISERROR(F59/365),0,(F59/365))*12,0) -> 0 | H59: =IF(OR($B$58<$K19,$B$57>$L19),0,M19) -> 0 | I59: =(F59*$E$57)*H59 -> 0 | J59: =IF(ISERROR(I59/H59),0,(I59/H59)) -> 0
F60: =IF(OR($B$58<$K20,$B$57>$L20),0,(MIN($B$58,$L20)-MAX($B$57,$K20)+1)) -> 0 | G60: =ROUND(IF(ISERROR(F60/365),0,(F60/365))*12,0) -> 0 | H60: =IF(OR($B$58<$K20,$B$57>$L20),0,M20) -> 0 | I60: =(F60*$E$57)*H60 -> 0 | J60: =IF(ISERROR(I60/H60),0,(I60/H60)) -> 0
F61: =IF(OR($B$58<$K21,$B$57>$L21),0,(MIN($B$58,$L21)-MAX($B$57,$K21)+1)) -> 365 | G61: =ROUND(IF(ISERROR(F61/365),0,(F61/365))*12,0) -> 12 | H61: =IF(OR($B$58<$K21,$B$57>$L21),0,M21) -> 0.53 | I61: =(F61*$E$57)*H61 -> 0 | J61: =IF(ISERROR(I61/H61),0,(I61/H61)) -> 0
B62: Totals: | D62: =SUM(D57:D61) -> 0 | F62: =SUM(F57:F61) -> 365 | G62: =SUM(G57:G61) -> 12 | H62: =AVERAGEIF(H57:H61,"<>0") -> 0.53 | I62: =SUM(I57:I61) -> 0 | J62: =SUM(J57:J61) -> 0
A65: 6th Budget Period | B65: Enter | C65: Calculated | D65: Enter Amount: | E65: Calculated | G65: Calculated | I65: Calculated | J65: Calculated
B66: Dates: | C66: Total # Months | D66: Total MTDC for the Period | E66: MTDC Daily Rate | F66: Days at Rate | G66: Months at Rate | H66: Use Rate | I66: F&A Amount | J66: MTDC Amount
A67: Project Start Date | C67: =ROUND(IF((B67=0),0,(B68-B67))/30,0) -> 0 | D67: 0 | E67: =IF(ISERROR(D67/F72),0,(D67/F72)) -> 0 | F67: =IF(OR($B$68<$K17,$B$67>$L17),0,(MIN($B$68,$L17)-MAX($B$67,$K17)+1)) -> 0 | G67: =ROUND(IF(ISERROR(F67/365),0,(F67/365))*12,0) -> 0 | H67: =IF(OR($B$68<$K17,$B$67>$L17),0,M17) -> 0 | I67: =(F67*$E$67)*H67 -> 0 | J67: =IF(ISERROR(I67/H67),0,(I67/H67)) -> 0
A68: Project End Date | F68: =IF(OR($B$68<$K18,$B$67>$L18),0,(MIN($B$68,$L18)-MAX($B$67,$K18)+1)) -> 0 | G68: =ROUND(IF(ISERROR(F68/365),0,(F68/365))*12,0) -> 0 | H68: =IF(OR($B$68<$K18,$B$67>$L18),0,M18) -> 0 | I68: =(F68*$E$67)*H68 -> 0 | J68: =IF(ISERROR(I68/H68),0,(I68/H68)) -> 0
F69: =IF(OR($B$68<$K19,$B$67>$L19),0,(MIN($B$68,$L19)-MAX($B$67,$K19)+1)) -> 0 | G69: =ROUND(IF(ISERROR(F69/365),0,(F69/365))*12,0) -> 0 | H69: =IF(OR($B$68<$K19,$B$67>$L19),0,M19) -> 0 | I69: =(F69*$E$67)*H69 -> 0 | J69: =IF(ISERROR(I69/H69),0,(I69/H69)) -> 0
F70: =IF(OR($B$68<$K20,$B$67>$L20),0,(MIN($B$68,$L20)-MAX($B$67,$K20)+1)) -> 0 | G70: =ROUND(IF(ISERROR(F70/365),0,(F70/365))*12,0) -> 0 | H70: =IF(OR($B$68<$K20,$B$67>$L20),0,M20) -> 0 | I70: =(F70*$E$67)*H70 -> 0 | J70: =IF(ISERROR(I70/H70),0,(I70/H70)) -> 0
F71: =IF(OR($B$68<$K21,$B$67>$L21),0,(MIN($B$68,$L21)-MAX($B$67,$K21)+1)) -> 0 | G71: =ROUND(IF(ISERROR(F71/365),0,(F71/365))*12,0) -> 0 | H71: =IF(OR($B$68<$K21,$B$67>$L21),0,M21) -> 0 | I71: =(F71*$E$67)*H71 -> 0 | J71: =IF(ISERROR(I71/H71),0,(I71/H71)) -> 0
B72: Totals: | D72: =SUM(D67:D71) -> 0 | F72: =SUM(F67:F71) -> 0 | G72: =SUM(G67:G71) -> 0 | H72: =AVERAGEIF(H67:H71,"<>0") ->  | I72: =SUM(I67:I71) -> 0 | J72: =SUM(J67:J71) -> 0
A75: 7th Budget Period | B75: Enter | C75: Calculated | D75: Enter Amount: | E75: Calculated | G75: Calculated | I75: Calculated | J75: Calculated
B76: Dates: | C76: Total # Months | D76: Total MTDC for the Period | E76: MTDC Daily Rate | F76: Days at Rate | G76: Months at Rate | H76: Use Rate | I76: F&A Amount | J76: MTDC Amount
A77: Project Start Date | C77: =ROUND(IF((B77=0),0,(B78-B77))/30,0) -> 0 | D77: 0 | E77: =IF(ISERROR(D77/F82),0,(D77/F82)) -> 0 | F77: =IF(OR($B$78<$K17,$B$77>$L17),0,(MIN($B$78,$L17)-MAX($B$77,$K17)+1)) -> 0 | G77: =ROUND(IF(ISERROR(F77/365),0,(F77/365))*12,0) -> 0 | H77: =IF(OR($B$78<$K17,$B$77>$L17),0,M17) -> 0 | I77: =(F77*$E$77)*H77 -> 0 | J77: =IF(ISERROR(I77/H77),0,(I77/H77)) -> 0
A78: Project End Date | F78: =IF(OR($B$78<$K18,$B$77>$L18),0,(MIN($B$78,$L18)-MAX($B$77,$K18)+1)) -> 0 | G78: =ROUND(IF(ISERROR(F78/365),0,(F78/365))*12,0) -> 0 | H78: =IF(OR($B$78<$K18,$B$77>$L18),0,M18) -> 0 | I78: =(F78*$E$77)*H78 -> 0 | J78: =IF(ISERROR(I78/H78),0,(I78/H78)) -> 0
F79: =IF(OR($B$78<$K19,$B$77>$L19),0,(MIN($B$78,$L19)-MAX($B$77,$K19)+1)) -> 0 | G79: =ROUND(IF(ISERROR(F79/365),0,(F79/365))*12,0) -> 0 | H79: =IF(OR($B$78<$K19,$B$77>$L19),0,M19) -> 0 | I79: =(F79*$E$77)*H79 -> 0 | J79: =IF(ISERROR(I79/H79),0,(I79/H79)) -> 0
F80: =IF(OR($B$78<$K20,$B$77>$L20),0,(MIN($B$78,$L20)-MAX($B$77,$K20)+1)) -> 0 | G80: =ROUND(IF(ISERROR(F80/365),0,(F80/365))*12,0) -> 0 | H80: =IF(OR($B$78<$K20,$B$77>$L20),0,M20) -> 0 | I80: =(F80*$E$77)*H80 -> 0 | J80: =IF(ISERROR(I80/H80),0,(I80/H80)) -> 0
F81: =IF(OR($B$78<$K21,$B$77>$L21),0,(MIN($B$78,$L21)-MAX($B$77,$K21)+1)) -> 0 | G81: =ROUND(IF(ISERROR(F81/365),0,(F81/365))*12,0) -> 0 | H81: =IF(OR($B$78<$K21,$B$77>$L21),0,M21) -> 0 | I81: =(F81*$E$77)*H81 -> 0 | J81: =IF(ISERROR(I81/H81),0,(I81/H81)) -> 0
B82: Totals: | D82: =SUM(D77:D81) -> 0 | F82: =SUM(F77:F81) -> 0 | G82: =SUM(G77:G81) -> 0 | H82: =AVERAGEIF(H77:H81,"<>0") ->  | I82: =SUM(I77:I81) -> 0 | J82: =SUM(J77:J81) -> 0

Sheet F&A Calculations - Cost Share
D1: Tool to Calculate Split F&A Rates for a Project Period
A3: INSTRUCTIONS: | B3: Use this tool to help you calculate split F&A for budgeting purposes. By entering the Project Budget amount, and start and end dates, this tool will calculate the correct F&A rate for the period.
B4: The only fields needed are the Start Date, End Date, and the Modified Total Direct Cost Amount. This tool will calculate the F&A rate and amount based on the reference table shown.
B6: Please be aware that if your Project period Start and End dates span multiple F&A effective dates, you will need to add the additional effective dates and rates to the Project Activity>FA Rates tab in EFS.
B7: See the job aid: Setting up F&A on a Project Using Split Rates
B9: This tool is set up to accommodate up to 7 separate Project Budget periods and will provide a Grand Total of all budget periods.
D11: Total MTDC | I11: Total F&A
A12: PROJECT GRAND TOTALS: | D12: =D22+D32+D42+D52+D62+D72+D82 -> 0 | I12: =I22+I32+I42+I52+I62+I72+I82 -> 0
A15: 1st Budget Period | B15: Enter | C15: Calculated | D15: Enter Amount: | E15: Calculated | G15: Calculated | I15: Calculated | J15: Calculated | K15: Reference Only Rate Table:
B16: Dates: | C16: Total # Months | D16: Total MTDC for the Period | E16: MTDC Daily Rate | F16: Days at Rate | G16: Months at Rate | H16: Use Rate | I16: F&A Amount | J16: MTDC Amount | K16: Use F&A Rate Effective Date | L16: F&A Rate End | M16: F&A Rate %
A17: Project Start Date | B17: =Summary!H11 -> 2018-07-01 | C17: =ROUND(IF((B17=0),0,(B18-B17))/30,0) -> 12 | D17: =Summary!I101 -> 0 | E17: =IF(ISERROR(D17/F22),0,(D17/F22)) -> 0 | F17: =IF(OR($B$18<$K17,$B$17>$L17),0,(MIN($B$18,$L17)-MAX($B$17,$K17)+1)) -> 0 | G17: =ROUND(IF(ISERROR(F17/365),0,(F17/365)*12),2) -> 0 | H17: =IF(OR($B$18<$K17,$B$17>$L17),0,M17) -> 0 | I17: =(F17*$E$17)*H17 -> 0 | J17: =IF(ISERROR(I17/H17),0,(I17/H17)) -> 0 | K17: 2016-07-01 | L17: 2017-06-30 | M17: 0.52
A18: Project End Date | B18: =Summary!I11 -> 2019-06-30 | F18: =IF(OR($B$18<$K18,$B$17>$L18),0,(MIN($B$18,$L18)-MAX($B$17,$K18)+1)) -> 0 | G18: =ROUND(IF(ISERROR(F18/365),0,(F18/365)*12),2) -> 0 | H18: =IF(OR($B$18<$K18,$B$17>$L18),0,M18) -> 0 | I18: =(F18*$E$17)*H18 -> 0 | J18: =IF(ISERROR(I18/H18),0,(I18/H18)) -> 0 | K18: 2017-07-01 | L18: 2018-06-30 | M18: 0.52
F19: =IF(OR($B$18<$K19,$B$17>$L19),0,(MIN($B$18,$L19)-MAX($B$17,$K19)+1)) -> 365 | G19: =ROUND(IF(ISERROR(F19/365),0,(F19/365)*12),2) -> 12 | H19: =IF(OR($B$18<$K19,$B$17>$L19),0,M19) -> 0.53 | I19: =(F19*$E$17)*H19 -> 0 | J19: =IF(ISERROR(I19/H19),0,(I19/H19)) -> 0 | K19: 2018-07-01 | L19: 2019-06-30 | M19: 0.53
F20: =IF(OR($B$18<$K20,$B$17>$L20),0,(MIN($B$18,$L20)-MAX($B$17,$K20)+1)) -> 0 | G20: =ROUND(IF(ISERROR(F20/365),0,(F20/365)*12),2) -> 0 | H20: =IF(OR($B$18<$K20,$B$17>$L20),0,M20) -> 0 | I20: =(F20*$E$17)*H20 -> 0 | J20: =IF(ISERROR(I20/H20),0,(I20/H20)) -> 0 | K20: 2019-07-01 | L20: 2020-06-30 | M20: 0.53
F21: =IF(OR($B$18<$K21,$B$17>$L21),0,(MIN($B$18,$L21)-MAX($B$17,$K21)+1)) -> 0 | G21: =ROUND(IF(ISERROR(F21/365),0,(F21/365)*12),2) -> 0 | H21: =IF(OR($B$18<$K21,$B$17>$L21),0,M21) -> 0 | I21: =(F21*$E$17)*H21 -> 0 | J21: =IF(ISERROR(I21/H21),0,(I21/H21)) -> 0 | K21: 2020-07-01 | L21: 2030-06-30 | M21: 0.53
B22: Totals: | D22: =SUM(D17:D21) -> 0 | F22: =SUM(F17:F21) -> 365 | G22: =SUM(G17:G21) -> 12 | H22: =AVERAGEIF(H17:H21,"<>0") -> 0.53 | I22: =SUM(I17:I21) -> 0 | J22: =SUM(J17:J21) -> 0
A25: 2nd Budget Period | B25: Enter | C25: Calculated | D25: Enter Amount: | E25: Calculated | G25: Calculated | I25: Calculated | J25: Calculated
B26: Dates: | C26: Total # Months | D26: Total MTDC for the Period | E26: MTDC Daily Rate | F26: Days at Rate | G26: Months at Rate | H26: Use Rate | I26: F&A Amount | J26: MTDC Amount
A27: Project Start Date | B27: =Summary!J11 -> 2019-07-01 | C27: =ROUND(IF((B27=0),0,(B28-B27))/30,0) -> 12 | D27: =Summary!K101 -> 0 | E27: =IF(ISERROR(D27/F32),0,(D27/F32)) -> 0 | F27: =IF(OR($B$28<$K17,$B$27>$L17),0,(MIN($B$28,$L17)-MAX($B$27,$K17)+1)) -> 0 | G27: =ROUND(IF(ISERROR(F27/365),0,(F27/365))*12,0) -> 0 | H27: =IF(OR($B$28<$K17,$B$27>$L17),0,M17) -> 0 | I27: =(F27*$E$27)*H27 -> 0 | J27: =IF(ISERROR(I27/H27),0,(I27/H27)) -> 0
A28: Project End Date | B28: =Summary!K11 -> 2020-06-30 | F28: =IF(OR($B$28<$K18,$B$27>$L18),0,(MIN($B$28,$L18)-MAX($B$27,$K18)+1)) -> 0 | G28: =ROUND(IF(ISERROR(F28/365),0,(F28/365))*12,0) -> 0 | H28: =IF(OR($B$28<$K18,$B$27>$L18),0,M18) -> 0 | I28: =(F28*$E$27)*H28 -> 0 | J28: =IF(ISERROR(I28/H28),0,(I28/H28)) -> 0
F29: =IF(OR($B$28<$K19,$B$27>$L19),0,(MIN($B$28,$L19)-MAX($B$27,$K19)+1)) -> 0 | G29: =ROUND(IF(ISERROR(F29/365),0,(F29/365))*12,0) -> 0 | H29: =IF(OR($B$28<$K19,$B$27>$L19),0,M19) -> 0 | I29: =(F29*$E$27)*H29 -> 0 | J29: =IF(ISERROR(I29/H29),0,(I29/H29)) -> 0
F30: =IF(OR($B$28<$K20,$B$27>$L20),0,(MIN($B$28,$L20)-MAX($B$27,$K20)+1)) -> 366 | G30: =ROUND(IF(ISERROR(F30/365),0,(F30/365))*12,0) -> 12 | H30: =IF(OR($B$28<$K20,$B$27>$L20),0,M20) -> 0.53 | I30: =(F30*$E$27)*H30 -> 0 | J30: =IF(ISERROR(I30/H30),0,(I30/H30)) -> 0
F31: =IF(OR($B$28<$K21,$B$27>$L21),0,(MIN($B$28,$L21)-MAX($B$27,$K21)+1)) -> 0 | G31: =ROUND(IF(ISERROR(F31/365),0,(F31/365))*12,0) -> 0 | H31: =IF(OR($B$28<$K21,$B$27>$L21),0,M21) -> 0 | I31: =(F31*$E$27)*H31 -> 0 | J31: =IF(ISERROR(I31/H31),0,(I31/H31)) -> 0
B32: Totals: | D32: =SUM(D27:D31) -> 0 | F32: =SUM(F27:F31) -> 366 | G32: =SUM(G27:G31) -> 12 | H32: =AVERAGEIF(H27:H31,"<>0") -> 0.53 | I32: =SUM(I27:I31) -> 0 | J32: =SUM(J27:J31) -> 0
A35: 3rd Budget Period | B35: Enter | C35: Calculated | D35: Enter Amount: | E35: Calculated | G35: Calculated | I35: Calculated | J35: Calculated
B36: Dates: | C36: Total # Months | D36: Total MTDC for the Period | E36: MTDC Daily Rate | F36: Days at Rate | G36: Months at Rate | H36: Use Rate | I36: F&A Amount | J36: MTDC Amount
A37: Project Start Date | B37: =Summary!L11 -> 2020-07-01 | C37: =ROUND(IF((B37=0),0,(B38-B37))/30,0) -> 12 | D37: =Summary!M101 -> 0 | E37: =IF(ISERROR(D37/F42),0,(D37/F42)) -> 0 | F37: =IF(OR($B$38<$K17,$B$37>$L17),0,(MIN($B$38,$L17)-MAX($B$37,$K17)+1)) -> 0 | G37: =ROUND(IF(ISERROR(F37/365),0,(F37/365))*12,0) -> 0 | H37: =IF(OR($B$38<$K17,$B$37>$L17),0,M17) -> 0 | I37: =(F37*$E$37)*H37 -> 0 | J37: =IF(ISERROR(I37/H37),0,(I37/H37)) -> 0
A38: Project End Date | B38: =Summary!M11 -> 2021-06-30 | F38: =IF(OR($B$38<$K18,$B$37>$L18),0,(MIN($B$38,$L18)-MAX($B$37,$K18)+1)) -> 0 | G38: =ROUND(IF(ISERROR(F38/365),0,(F38/365))*12,0) -> 0 | H38: =IF(OR($B$38<$K18,$B$37>$L18),0,M18) -> 0 | I38: =(F38*$E$37)*H38 -> 0 | J38: =IF(ISERROR(I38/H38),0,(I38/H38)) -> 0
F39: =IF(OR($B$38<$K19,$B$37>$L19),0,(MIN($B$38,$L19)-MAX($B$37,$K19)+1)) -> 0 | G39: =ROUND(IF(ISERROR(F39/365),0,(F39/365))*12,0) -> 0 | H39: =IF(OR($B$38<$K19,$B$37>$L19),0,M19) -> 0 | I39: =(F39*$E$37)*H39 -> 0 | J39: =IF(ISERROR(I39/H39),0,(I39/H39)) -> 0
F40: =IF(OR($B$38<$K20,$B$37>$L20),0,(MIN($B$38,$L20)-MAX($B$37,$K20)+1)) -> 0 | G40: =ROUND(IF(ISERROR(F40/365),0,(F40/365))*12,0) -> 0 | H40: =IF(OR($B$38<$K20,$B$37>$L20),0,M20) -> 0 | I40: =(F40*$E$37)*H40 -> 0 | J40: =IF(ISERROR(I40/H40),0,(I40/H40)) -> 0
F41: =IF(OR($B$38<$K21,$B$37>$L21),0,(MIN($B$38,$L21)-MAX($B$37,$K21)+1)) -> 365 | G41: =ROUND(IF(ISERROR(F41/365),0,(F41/365))*12,0) -> 12 | H41: =IF(OR($B$38<$K21,$B$37>$L21),0,M21) -> 0.53 | I41: =(F41*$E$37)*H41 -> 0 | J41: =IF(ISERROR(I41/H41),0,(I41/H41)) -> 0
B42: Totals: | D42: =SUM(D37:D41) -> 0 | F42: =SUM(F37:F41) -> 365 | G42: =SUM(G37:G41) -> 12 | H42: =AVERAGEIF(H37:H41,"<>0") -> 0.53 | I42: =SUM(I37:I41) -> 0 | J42: =SUM(J37:J41) -> 0
A45: 4th Budget Period | B45: Enter | C45: Calculated | D45: Enter Amount: | E45: Calculated | G45: Calculated | I45: Calculated | J45: Calculated
B46: Dates: | C46: Total # Months | D46: Total MTDC for the Period | E46: MTDC Daily Rate | F46: Days at Rate | G46: Months at Rate | H46: Use Rate | I46: F&A Amount | J46: MTDC Amount
A47: Project Start Date | B47: =Summary!N11 -> 2021-07-01 | C47: =ROUND(IF((B47=0),0,(B48-B47))/30,0) -> 12 | D47: =Summary!O101 -> 0 | E47: =IF(ISERROR(D47/F52),0,(D47/F52)) -> 0 | F47: =IF(OR($B$48<$K17,$B$47>$L17),0,(MIN($B$48,$L17)-MAX($B$47,$K17)+1)) -> 0 | G47: =ROUND(IF(ISERROR(F47/365),0,(F47/365))*12,0) -> 0 | H47: =IF(OR($B$48<$K17,$B$47>$L17),0,M17) -> 0 | I47: =(F47*$E$47)*H47 -> 0 | J47: =IF(ISERROR(I47/H47),0,(I47/H47)) -> 0
A48: Project End Date | B48: =Summary!O11 -> 2022-06-30 | F48: =IF(OR($B$48<$K18,$B$47>$L18),0,(MIN($B$48,$L18)-MAX($B$47,$K18)+1)) -> 0 | G48: =ROUND(IF(ISERROR(F48/365),0,(F48/365))*12,0) -> 0 | H48: =IF(OR($B$48<$K18,$B$47>$L18),0,M18) -> 0 | I48: =(F48*$E$47)*H48 -> 0 | J48: =IF(ISERROR(I48/H48),0,(I48/H48)) -> 0
F49: =IF(OR($B$48<$K19,$B$47>$L19),0,(MIN($B$48,$L19)-MAX($B$47,$K19)+1)) -> 0 | G49: =ROUND(IF(ISERROR(F49/365),0,(F49/365))*12,0) -> 0 | H49: =IF(OR($B$48<$K19,$B$47>$L19),0,M19) -> 0 | I49: =(F49*$E$47)*H49 -> 0 | J49: =IF(ISERROR(I49/H49),0,(I49/H49)) -> 0
F50: =IF(OR($B$48<$K20,$B$47>$L20),0,(MIN($B$48,$L20)-MAX($B$47,$K20)+1)) -> 0 | G50: =ROUND(IF(ISERROR(F50/365),0,(F50/365))*12,0) -> 0 | H50: =IF(OR($B$48<$K20,$B$47>$L20),0,M20) -> 0 | I50: =(F50*$E$47)*H50 -> 0 | J50: =IF(ISERROR(I50/H50),0,(I50/H50)) -> 0
F51: =IF(OR($B$48<$K21,$B$47>$L21),0,(MIN($B$48,$L21)-MAX($B$47,$K21)+1)) -> 365 | G51: =ROUND(IF(ISERROR(F51/365),0,(F51/365))*12,0) -> 12 | H51: =IF(OR($B$48<$K21,$B$47>$L21),0,M21) -> 0.53 | I51: =(F51*$E$47)*H51 -> 0 | J51: =IF(ISERROR(I51/H51),0,(I51/H51)) -> 0
B52: Totals: | D52: =SUM(D47:D51) -> 0 | F52: =SUM(F47:F51) -> 365 | G52: =SUM(G47:G51) -> 12 | H52: =AVERAGEIF(H47:H51,"<>0") -> 0.53 | I52: =SUM(I47:I51) -> 0 | J52: =SUM(J47:J51) -> 0
A55: 5th Budget Period | B55: Enter | C55: Calculated | D55: Enter Amount: | E55: Calculated | G55: Calculated | I55: Calculated | J55: Calculated
B56: Dates: | C56: Total # Months | D56: Total MTDC for the Period | E56: MTDC Daily Rate | F56: Days at Rate | G56: Months at Rate | H56: Use Rate | I56: F&A Amount | J56: MTDC Amount
A57: Project Start Date | B57: =Summary!P11 -> 2022-07-01 | C57: =ROUND(IF((B57=0),0,(B58-B57))/30,0) -> 12 | D57: =Summary!Q101 -> 0 | E57: =IF(ISERROR(D57/F62),0,(D57/F62)) -> 0 | F57: =IF(OR($B$58<$K17,$B$57>$L17),0,(MIN($B$58,$L17)-MAX($B$57,$K17)+1)) -> 0 | G57: =ROUND(IF(ISERROR(F57/365),0,(F57/365))*12,0) -> 0 | H57: =IF(OR($B$58<$K17,$B$57>$L17),0,M17) -> 0 | I57: =(F57*$E$57)*H57 -> 0 | J57: =IF(ISERROR(I57/H57),0,(I57/H57)) -> 0
A58: Project End Date | B58: =Summary!Q11 -> 2023-06-30 | F58: =IF(OR($B$58<$K18,$B$57>$L18),0,(MIN($B$58,$L18)-MAX($B$57,$K18)+1)) -> 0 | G58: =ROUND(IF(ISERROR(F58/365),0,(F58/365))*12,0) -> 0 | H58: =IF(OR($B$58<$K18,$B$57>$L18),0,M18) -> 0 | I58: =(F58*$E$57)*H58 -> 0 | J58: =IF(ISERROR(I58/H58),0,(I58/H58)) -> 0
F59: =IF(OR($B$58<$K19,$B$57>$L19),0,(MIN($B$58,$L19)-MAX($B$57,$K19)+1)) -> 0 | G59: =ROUND(IF(ISERROR(F59/365),0,(F59/365))*12,0) -> 0 | H59: =IF(OR($B$58<$K19,$B$57>$L19),0,M19) -> 0 | I59: =(F59*$E$57)*H59 -> 0 | J59: =IF(ISERROR(I59/H59),0,(I59/H59)) -> 0
F60: =IF(OR($B$58<$K20,$B$57>$L20),0,(MIN($B$58,$L20)-MAX($B$57,$K20)+1)) -> 0 | G60: =ROUND(IF(ISERROR(F60/365),0,(F60/365))*12,0) -> 0 | H60: =IF(OR($B$58<$K20,$B$57>$L20),0,M20) -> 0 | I60: =(F60*$E$57)*H60 -> 0 | J60: =IF(ISERROR(I60/H60),0,(I60/H60)) -> 0
F61: =IF(OR($B$58<$K21,$B$57>$L21),0,(MIN($B$58,$L21)-MAX($B$57,$K21)+1)) -> 365 | G61: =ROUND(IF(ISERROR(F61/365),0,(F61/365))*12,0) -> 12 | H61: =IF(OR($B$58<$K21,$B$57>$L21),0,M21) -> 0.53 | I61: =(F61*$E$57)*H61 -> 0 | J61: =IF(ISERROR(I61/H61),0,(I61/H61)) -> 0
B62: Totals: | D62: =SUM(D57:D61) -> 0 | F62: =SUM(F57:F61) -> 365 | G62: =SUM(G57:G61) -> 12 | H62: =AVERAGEIF(H57:H61,"<>0") -> 0.53 | I62: =SUM(I57:I61) -> 0 | J62: =SUM(J57:J61) -> 0
A65: 6th Budget Period | B65: Enter | C65: Calculated | D65: Enter Amount: | E65: Calculated | G65: Calculated | I65: Calculated | J65: Calculated
B66: Dates: | C66: Total # Months | D66: Total MTDC for the Period | E66: MTDC Daily Rate | F66: Days at Rate | G66: Months at Rate | H66: Use Rate | I66: F&A Amount | J66: MTDC Amount
A67: Project Start Date | C67: =ROUND(IF((B67=0),0,(B68-B67))/30,0) -> 0 | D67: 0 | E67: =IF(ISERROR(D67/F72),0,(D67/F72)) -> 0 | F67: =IF(OR($B$68<$K17,$B$67>$L17),0,(MIN($B$68,$L17)-MAX($B$67,$K17)+1)) -> 0 | G67: =ROUND(IF(ISERROR(F67/365),0,(F67/365))*12,0) -> 0 | H67: =IF(OR($B$68<$K17,$B$67>$L17),0,M17) -> 0 | I67: =(F67*$E$67)*H67 -> 0 | J67: =IF(ISERROR(I67/H67),0,(I67/H67)) -> 0
A68: Project End Date | F68: =IF(OR($B$68<$K18,$B$67>$L18),0,(MIN($B$68,$L18)-MAX($B$67,$K18)+1)) -> 0 | G68: =ROUND(IF(ISERROR(F68/365),0,(F68/365))*12,0) -> 0 | H68: =IF(OR($B$68<$K18,$B$67>$L18),0,M18) -> 0 | I68: =(F68*$E$67)*H68 -> 0 | J68: =IF(ISERROR(I68/H68),0,(I68/H68)) -> 0
F69: =IF(OR($B$68<$K19,$B$67>$L19),0,(MIN($B$68,$L19)-MAX($B$67,$K19)+1)) -> 0 | G69: =ROUND(IF(ISERROR(F69/365),0,(F69/365))*12,0) -> 0 | H69: =IF(OR($B$68<$K19,$B$67>$L19),0,M19) -> 0 | I69: =(F69*$E$67)*H69 -> 0 | J69: =IF(ISERROR(I69/H69),0,(I69/H69)) -> 0
F70: =IF(OR($B$68<$K20,$B$67>$L20),0,(MIN($B$68,$L20)-MAX($B$67,$K20)+1)) -> 0 | G70: =ROUND(IF(ISERROR(F70/365),0,(F70/365))*12,0) -> 0 | H70: =IF(OR($B$68<$K20,$B$67>$L20),0,M20) -> 0 | I70: =(F70*$E$67)*H70 -> 0 | J70: =IF(ISERROR(I70/H70),0,(I70/H70)) -> 0
F71: =IF(OR($B$68<$K21,$B$67>$L21),0,(MIN($B$68,$L21)-MAX($B$67,$K21)+1)) -> 0 | G71: =ROUND(IF(ISERROR(F71/365),0,(F71/365))*12,0) -> 0 | H71: =IF(OR($B$68<$K21,$B$67>$L21),0,M21) -> 0 | I71: =(F71*$E$67)*H71 -> 0 | J71: =IF(ISERROR(I71/H71),0,(I71/H71)) -> 0
B72: Totals: | D72: =SUM(D67:D71) -> 0 | F72: =SUM(F67:F71) -> 0 | G72: =SUM(G67:G71) -> 0 | H72: =AVERAGEIF(H67:H71,"<>0") ->  | I72: =SUM(I67:I71) -> 0 | J72: =SUM(J67:J71) -> 0
A75: 7th Budget Period | B75: Enter | C75: Calculated | D75: Enter Amount: | E75: Calculated | G75: Calculated | I75: Calculated | J75: Calculated
B76: Dates: | C76: Total # Months | D76: Total MTDC for the Period | E76: MTDC Daily Rate | F76: Days at Rate | G76: Months at Rate | H76: Use Rate | I76: F&A Amount | J76: MTDC Amount
A77: Project Start Date | C77: =ROUND(IF((B77=0),0,(B78-B77))/30,0) -> 0 | D77: 0 | E77: =IF(ISERROR(D77/F82),0,(D77/F82)) -> 0 | F77: =IF(OR($B$78<$K17,$B$77>$L17),0,(MIN($B$78,$L17)-MAX($B$77,$K17)+1)) -> 0 | G77: =ROUND(IF(ISERROR(F77/365),0,(F77/365))*12,0) -> 0 | H77: =IF(OR($B$78<$K17,$B$77>$L17),0,M17) -> 0 | I77: =(F77*$E$77)*H77 -> 0 | J77: =IF(ISERROR(I77/H77),0,(I77/H77)) -> 0
A78: Project End Date | F78: =IF(OR($B$78<$K18,$B$77>$L18),0,(MIN($B$78,$L18)-MAX($B$77,$K18)+1)) -> 0 | G78: =ROUND(IF(ISERROR(F78/365),0,(F78/365))*12,0) -> 0 | H78: =IF(OR($B$78<$K18,$B$77>$L18),0,M18) -> 0 | I78: =(F78*$E$77)*H78 -> 0 | J78: =IF(ISERROR(I78/H78),0,(I78/H78)) -> 0
F79: =IF(OR($B$78<$K19,$B$77>$L19),0,(MIN($B$78,$L19)-MAX($B$77,$K19)+1)) -> 0 | G79: =ROUND(IF(ISERROR(F79/365),0,(F79/365))*12,0) -> 0 | H79: =IF(OR($B$78<$K19,$B$77>$L19),0,M19) -> 0 | I79: =(F79*$E$77)*H79 -> 0 | J79: =IF(ISERROR(I79/H79),0,(I79/H79)) -> 0
F80: =IF(OR($B$78<$K20,$B$77>$L20),0,(MIN($B$78,$L20)-MAX($B$77,$K20)+1)) -> 0 | G80: =ROUND(IF(ISERROR(F80/365),0,(F80/365))*12,0) -> 0 | H80: =IF(OR($B$78<$K20,$B$77>$L20),0,M20) -> 0 | I80: =(F80*$E$77)*H80 -> 0 | J80: =IF(ISERROR(I80/H80),0,(I80/H80)) -> 0
F81: =IF(OR($B$78<$K21,$B$77>$L21),0,(MIN($B$78,$L21)-MAX($B$77,$K21)+1)) -> 0 | G81: =ROUND(IF(ISERROR(F81/365),0,(F81/365))*12,0) -> 0 | H81: =IF(OR($B$78<$K21,$B$77>$L21),0,M21) -> 0 | I81: =(F81*$E$77)*H81 -> 0 | J81: =IF(ISERROR(I81/H81),0,(I81/H81)) -> 0
B82: Totals: | D82: =SUM(D77:D81) -> 0 | F82: =SUM(F77:F81) -> 0 | G82: =SUM(G77:G81) -> 0 | H82: =AVERAGEIF(H77:H81,"<>0") ->  | I82: =SUM(I77:I81) -> 0 | J82: =SUM(J77:J81) -> 0

Sheet Tuition
C1: Tuition Costs | K1: Year 1 | M1: Year 2 | O1: Year 3 | Q1: Year 4 | S1: Year 5
K3: Funds Requested | M3: Funds Requested | O3: Funds Requested | Q3: Funds Requested | S3: Funds Requested
A6: 8 | C6: Graduate Student Tuition (most Majors) | G6: select 1/4-time/1/2-time > > | I6: 1/2-time | K6: =ROUND(IF(I6="1/2-time",K7,K8),0) -> 0 | M6: =ROUND(IF(I6="1/2-time",M7,M8),0) -> 0 | O6: =ROUND(IF(I6="1/2-time",O7,O8),0) -> 0 | Q6: =ROUND(IF(I6="1/2-time",Q7,Q8),0) -> 0 | S6: =ROUND(IF(I6="1/2-time",S7,S8),0) -> 0
A7: 8 | C7: Graduate Student Tuition | I7: Maximum | K7: =+C13*VLOOKUP(K13,$I$111:$Q$137,5,FALSE)+C15*VLOOKUP(K15,$I$111:$Q$137,5,FALSE)+C17*VLOOKUP(K17,$I$111:$Q$137,5,FALSE)+C19*VLOOKUP(K19,$I$111:$Q$137,9,FALSE)+C21*VLOOKUP(K21,$I$111:$Q$137,9,FALSE)+C23*VLOOKUP(K23,$I$111:$Q$137,9,FALSE) -> 0 | M7: =+E13*VLOOKUP(M13,$I$111:$Q$137,5,FALSE)+E15*VLOOKUP(M15,$I$111:$Q$137,5,FALSE)+E17*VLOOKUP(M17,$I$111:$Q$137,5,FALSE)+E19*VLOOKUP(M19,$I$111:$Q$137,9,FALSE)+E21*VLOOKUP(M21,$I$111:$Q$137,9,FALSE)+E23*VLOOKUP(M23,$I$111:$Q$137,9,FALSE) -> 0 | O7: =+F13*VLOOKUP(O13,$I$111:$Q$137,5,FALSE)+F15*VLOOKUP(O15,$I$111:$Q$137,5,FALSE)+F17*VLOOKUP(O17,$I$111:$Q$137,5,FALSE)+F19*VLOOKUP(O19,$I$111:$Q$137,9,FALSE)+F21*VLOOKUP(O21,$I$111:$Q$137,9,FALSE)+F23*VLOOKUP(O23,$I$111:$Q$137,9,FALSE) -> 0 | Q7: =+G13*VLOOKUP(Q13,$I$111:$Q$137,5,FALSE)+G15*VLOOKUP(Q15,$I$111:$Q$137,5,FALSE)+G17*VLOOKUP(Q17,$I$111:$Q$137,5,FALSE)+G19*VLOOKUP(Q19,$I$111:$Q$137,9,FALSE)+G21*VLOOKUP(Q21,$I$111:$Q$137,9,FALSE)+G23*VLOOKUP(Q23,$I$111:$Q$137,9,FALSE) -> 0 | S7: =+H13*VLOOKUP(S13,$I$111:$Q$137,5,FALSE)+H15*VLOOKUP(S15,$I$111:$Q$137,5,FALSE)+H17*VLOOKUP(S17,$I$111:$Q$137,5,FALSE)+H19*VLOOKUP(S19,$I$111:$Q$137,9,FALSE)+H21*VLOOKUP(S21,$I$111:$Q$137,9,FALSE)+H23*VLOOKUP(S23,$I$111:$Q$137,9,FALSE) -> 0
A8: 8 | C8: Graduate Student Tuition | I8: Minimum | K8: =+C13*VLOOKUP(K13,$I$111:$Q$137,3,FALSE)+C15*VLOOKUP(K15,$I$111:$Q$137,3,FALSE)+C17*VLOOKUP(K17,$I$111:$Q$137,3,FALSE)+C19*VLOOKUP(K19,$I$111:$Q$137,7,FALSE)+C21*VLOOKUP(K21,$I$111:$Q$137,7,FALSE)+C23*VLOOKUP(K23,$I$111:$Q$137,7,FALSE) -> 0 | M8: =+E13*VLOOKUP(M13,$I$111:$Q$137,3,FALSE)+E15*VLOOKUP(M15,$I$111:$Q$137,3,FALSE)+E17*VLOOKUP(M17,$I$111:$Q$137,3,FALSE)+E19*VLOOKUP(M19,$I$111:$Q$137,7,FALSE)+E21*VLOOKUP(M21,$I$111:$Q$137,7,FALSE)+E23*VLOOKUP(M23,$I$111:$Q$137,7,FALSE) -> 0 | O8: =+F13*VLOOKUP(O13,$I$111:$Q$137,3,FALSE)+F15*VLOOKUP(O15,$I$111:$Q$137,3,FALSE)+F17*VLOOKUP(O17,$I$111:$Q$137,3,FALSE)+F19*VLOOKUP(O19,$I$111:$Q$137,7,FALSE)+F21*VLOOKUP(O21,$I$111:$Q$137,7,FALSE)+F23*VLOOKUP(O23,$I$111:$Q$137,7,FALSE) -> 0 | Q8: =+G13*VLOOKUP(Q13,$I$111:$Q$137,3,FALSE)+G15*VLOOKUP(Q15,$I$111:$Q$137,3,FALSE)+G17*VLOOKUP(Q17,$I$111:$Q$137,3,FALSE)+G19*VLOOKUP(Q19,$I$111:$Q$137,7,FALSE)+G21*VLOOKUP(Q21,$I$111:$Q$137,7,FALSE)+G23*VLOOKUP(Q23,$I$111:$Q$137,7,FALSE) -> 0 | S8: =+H13*VLOOKUP(S13,$I$111:$Q$137,3,FALSE)+H15*VLOOKUP(S15,$I$111:$Q$137,3,FALSE)+H17*VLOOKUP(S17,$I$111:$Q$137,3,FALSE)+H19*VLOOKUP(S19,$I$111:$Q$137,7,FALSE)+H21*VLOOKUP(S21,$I$111:$Q$137,7,FALSE)+H23*VLOOKUP(S23,$I$111:$Q$137,7,FALSE) -> 0
C11: Graduate Student Tuition (most majors)
C12: Year 1 | E12: Year 2 | F12: Year 3 | G12: Year 4 | H12: Year 5
A13: Masters Students (enter no. of students per term) | I13: Summer | K13: Summer 2018 | M13: Summer 2019 | O13: Summer 2020 | Q13: Summer 2021 | S13: Summer 2022
I15: Fall | K15: Fall 2018 | M15: Fall 2019 | O15: Fall 2020 | Q15: Fall 2020 | S15: Fall 2021
I17: Spring | K17: Spring 2019 | M17: Spring 2020 | O17: Spring 2021 | Q17: Spring 2020 | S17: Spring 2021
A19: PhD Students (enter no. of students per term) | I19: Summer | K19: Summer 2018 | M19: Summer 2019 | O19: Summer 2020 | Q19: Summer 2021 | S19: Summer 2022
I21: Fall | K21: Fall 2018 | M21: Fall 2019 | O21: Fall 2020 | Q21: Fall 2021 | S21: Fall 2022
I23: Spring | K23: Spring 2019 | M23: Spring 2020 | O23: Spring 2021 | Q23: Spring 2022 | S23: Spring 2023
A26: 8 | C26: Graduate Student Tuition (Engineering & Architecture) | G26: select 1/4-time/1/2-time > > | I26: 1/2-time | K26: =ROUND(IF($I$26="1/2-time",K27,K28),0) -> 0 | M26: =ROUND(IF($I$26="1/2-time",M27,M28),0) -> 0 | O26: =ROUND(IF($I$26="1/2-time",O27,O28),0) -> 0 | Q26: =ROUND(IF($I$26="1/2-time",Q27,Q28),0) -> 0 | S26: =ROUND(IF($I$26="1/2-time",S27,S28),0) -> 0
A27: 8 | C27: Graduate Student Tuition | I27: Maximum | K27: =+C33*VLOOKUP(K33,$I$141:$Q$167,5,FALSE)+C35*VLOOKUP(K35,$I$141:$Q$167,5,FALSE)+C37*VLOOKUP(K37,$I$141:$Q$167,5,FALSE)+C39*VLOOKUP(K39,$I$141:$Q$167,9,FALSE)+C41*VLOOKUP(K41,$I$141:$Q$167,9,FALSE)+C43*VLOOKUP(K43,$I$141:$Q$167,9,FALSE) -> 0 | M27: =+E33*VLOOKUP(M33,$I$141:$Q$167,5,FALSE)+E35*VLOOKUP(M35,$I$141:$Q$167,5,FALSE)+E37*VLOOKUP(M37,$I$141:$Q$167,5,FALSE)+E39*VLOOKUP(M39,$I$141:$Q$167,9,FALSE)+E41*VLOOKUP(M41,$I$141:$Q$167,9,FALSE)+E43*VLOOKUP(M43,$I$141:$Q$167,9,FALSE) -> 0 | O27: =+F33*VLOOKUP(O33,$I$141:$Q$167,5,FALSE)+F35*VLOOKUP(O35,$I$141:$Q$167,5,FALSE)+F37*VLOOKUP(O37,$I$141:$Q$167,5,FALSE)+F39*VLOOKUP(O39,$I$141:$Q$167,9,FALSE)+F41*VLOOKUP(O41,$I$141:$Q$167,9,FALSE)+F43*VLOOKUP(O43,$I$141:$Q$167,9,FALSE) -> 0 | Q27: =+G33*VLOOKUP(Q33,$I$141:$Q$167,5,FALSE)+G35*VLOOKUP(Q35,$I$141:$Q$167,5,FALSE)+G37*VLOOKUP(Q37,$I$141:$Q$167,5,FALSE)+G39*VLOOKUP(Q39,$I$141:$Q$167,9,FALSE)+G41*VLOOKUP(Q41,$I$141:$Q$167,9,FALSE)+G43*VLOOKUP(Q43,$I$141:$Q$167,9,FALSE) -> 0 | S27: =+H33*VLOOKUP(S33,$I$141:$Q$167,5,FALSE)+H35*VLOOKUP(S35,$I$141:$Q$167,5,FALSE)+H37*VLOOKUP(S37,$I$141:$Q$167,5,FALSE)+H39*VLOOKUP(S39,$I$141:$Q$167,9,FALSE)+H41*VLOOKUP(S41,$I$141:$Q$167,9,FALSE)+H43*VLOOKUP(S43,$I$141:$Q$167,9,FALSE) -> 0
A28: 8 | C28: Graduate Student Tuition | I28: Minimum | K28: =+C33*VLOOKUP(K33,$I$141:$Q$167,3,FALSE)+C35*VLOOKUP(K35,$I$141:$Q$167,3,FALSE)+C37*VLOOKUP(K37,$I$141:$Q$167,3,FALSE)+C39*VLOOKUP(K39,$I$141:$Q$167,7,FALSE)+C41*VLOOKUP(K41,$I$141:$Q$167,7,FALSE)+C43*VLOOKUP(K43,$I$141:$Q$167,7,FALSE) -> 0 | M28: =+E33*VLOOKUP(M33,$I$141:$Q$167,3,FALSE)+E35*VLOOKUP(M35,$I$141:$Q$167,3,FALSE)+E37*VLOOKUP(M37,$I$141:$Q$167,3,FALSE)+E39*VLOOKUP(M39,$I$141:$Q$167,7,FALSE)+E41*VLOOKUP(M41,$I$141:$Q$167,7,FALSE)+E43*VLOOKUP(M43,$I$141:$Q$167,7,FALSE) -> 0 | O28: =+F33*VLOOKUP(O33,$I$141:$Q$167,3,FALSE)+F35*VLOOKUP(O35,$I$141:$Q$167,3,FALSE)+F37*VLOOKUP(O37,$I$141:$Q$167,3,FALSE)+F39*VLOOKUP(O39,$I$141:$Q$167,7,FALSE)+F41*VLOOKUP(O41,$I$141:$Q$167,7,FALSE)+F43*VLOOKUP(O43,$I$141:$Q$167,7,FALSE) -> 0 | Q28: =+G33*VLOOKUP(Q33,$I$141:$Q$167,3,FALSE)+G35*VLOOKUP(Q35,$I$141:$Q$167,3,FALSE)+G37*VLOOKUP(Q37,$I$141:$Q$167,3,FALSE)+G39*VLOOKUP(Q39,$I$141:$Q$167,7,FALSE)+G41*VLOOKUP(Q41,$I$141:$Q$167,7,FALSE)+G43*VLOOKUP(Q43,$I$141:$Q$167,7,FALSE) -> 0 | S28: =+H33*VLOOKUP(S33,$I$141:$Q$167,3,FALSE)+H35*VLOOKUP(S35,$I$141:$Q$167,3,FALSE)+H37*VLOOKUP(S37,$I$141:$Q$167,3,FALSE)+H39*VLOOKUP(S39,$I$141:$Q$167,7,FALSE)+H41*VLOOKUP(S41,$I$141:$Q$167,7,FALSE)+H43*VLOOKUP(S43,$I$141:$Q$167,7,FALSE) -> 0
C31: Engineering & Architecture Students Only
C32: Year 1 | E32: Year 2 | F32: Year 3 | G32: Year 4 | H32: Year 5
A33: Masters Students (enter no. of students per term) | I33: Summer | K33: Summer 2018 | M33: Summer 2019 | O33: Summer 2020 | Q33: Summer 2021 | S33: Summer 2022
I35: Fall | K35: Fall 2018 | M35: Fall 2019 | O35: Fall 2020 | Q35: Fall 2021 | S35: Fall 2022
I37: Spring | K37: Spring 2019 | M37: Spring 2020 | O37: Spring 2020 | Q37: Spring 2021 | S37: Spring 2022
C38: Year 1 | E38: Year 2 | F38: Year 3 | G38: Year 4 | H38: Year 5
A39: PhD Students (enter no. of students per term) | I39: Summer | K39: Summer 2018 | M39: Summer 2019 | O39: Summer 2020 | Q39: Summer 2021 | S39: Summer 2022
I41: Fall | K41: Fall 2018 | M41: Fall 2019 | O41: Fall 2020 | Q41: Fall 2021 | S41: Fall 2022
I43: Spring | K43: Spring 2019 | M43: Spring 2020 | O43: Spring 2021 | Q43: Spring 2022 | S43: Spring 2023
A46: 8 | C46: Graduate Student Tuition (Business & STB) | G46: select 1/4-time/1/2-time > > | I46: 1/2-time | K46: =ROUND(IF($I$46="1/2-time",K47,K48),0) -> 0 | M46: =ROUND(IF($I$46="1/2-time",M47,M48),0) -> 0 | O46: =ROUND(IF($I$46="1/2-time",O47,O48),0) -> 0 | Q46: =ROUND(IF($I$46="1/2-time",Q47,Q48),0) -> 0 | S46: =ROUND(IF($I$46="1/2-time",S47,S48),0) -> 0
A47: 8 | C47: Graduate Student Tuition | I47: Maximum | K47: =+C53*VLOOKUP(K53,$I$171:$Q$197,5,FALSE)+C55*VLOOKUP(K55,$I$171:$Q$197,5,FALSE)+C57*VLOOKUP(K57,$I$171:$Q$197,5,FALSE)+C59*VLOOKUP(K59,$I$171:$Q$197,9,FALSE)+C61*VLOOKUP(K61,$I$171:$Q$197,9,FALSE)+C63*VLOOKUP(K63,$I$171:$Q$197,9,FALSE) -> 0 | M47: =+E53*VLOOKUP(M53,$I$171:$Q$197,5,FALSE)+E55*VLOOKUP(M55,$I$171:$Q$197,5,FALSE)+E57*VLOOKUP(M57,$I$171:$Q$197,5,FALSE)+E59*VLOOKUP(M59,$I$171:$Q$197,9,FALSE)+E61*VLOOKUP(M61,$I$171:$Q$197,9,FALSE)+E63*VLOOKUP(M63,$I$171:$Q$197,9,FALSE) -> 0 | O47: =+F53*VLOOKUP(O53,$I$171:$Q$197,5,FALSE)+F55*VLOOKUP(O55,$I$171:$Q$197,5,FALSE)+F57*VLOOKUP(O57,$I$171:$Q$197,5,FALSE)+F59*VLOOKUP(O59,$I$171:$Q$197,9,FALSE)+F61*VLOOKUP(O61,$I$171:$Q$197,9,FALSE)+F63*VLOOKUP(O63,$I$171:$Q$197,9,FALSE) -> 0 | Q47: =+G53*VLOOKUP(Q53,$I$171:$Q$197,5,FALSE)+G55*VLOOKUP(Q55,$I$171:$Q$197,5,FALSE)+G57*VLOOKUP(Q57,$I$171:$Q$197,5,FALSE)+G59*VLOOKUP(Q59,$I$171:$Q$197,9,FALSE)+G61*VLOOKUP(Q61,$I$171:$Q$197,9,FALSE)+G63*VLOOKUP(Q63,$I$171:$Q$197,9,FALSE) -> 0 | S47: =+H53*VLOOKUP(S53,$I$171:$Q$197,5,FALSE)+H55*VLOOKUP(S55,$I$171:$Q$197,5,FALSE)+H57*VLOOKUP(S57,$I$171:$Q$197,5,FALSE)+H59*VLOOKUP(S59,$I$171:$Q$197,9,FALSE)+H61*VLOOKUP(S61,$I$171:$Q$197,9,FALSE)+H63*VLOOKUP(S63,$I$171:$Q$197,9,FALSE) -> 0
A48: 8 | C48: Graduate Student Tuition | I48: Minimum | K48: =+C53*VLOOKUP(K53,$I$171:$Q$197,3,FALSE)+C55*VLOOKUP(K55,$I$171:$Q$197,3,FALSE)+C57*VLOOKUP(K57,$I$171:$Q$197,3,FALSE)+C59*VLOOKUP(K59,$I$171:$Q$197,7,FALSE)+C61*VLOOKUP(K61,$I$171:$Q$197,7,FALSE)+C63*VLOOKUP(K63,$I$171:$Q$197,7,FALSE) -> 0 | M48: =+E53*VLOOKUP(M53,$I$171:$Q$197,3,FALSE)+E55*VLOOKUP(M55,$I$171:$Q$197,3,FALSE)+E57*VLOOKUP(M57,$I$171:$Q$197,3,FALSE)+E59*VLOOKUP(M59,$I$171:$Q$197,7,FALSE)+E61*VLOOKUP(M61,$I$171:$Q$197,7,FALSE)+E63*VLOOKUP(M63,$I$171:$Q$197,7,FALSE) -> 0 | O48: =+F53*VLOOKUP(O53,$I$171:$Q$197,3,FALSE)+F55*VLOOKUP(O55,$I$171:$Q$197,3,FALSE)+F57*VLOOKUP(O57,$I$171:$Q$197,3,FALSE)+F59*VLOOKUP(O59,$I$171:$Q$197,7,FALSE)+F61*VLOOKUP(O61,$I$171:$Q$197,7,FALSE)+F63*VLOOKUP(O63,$I$171:$Q$197,7,FALSE) -> 0 | Q48: =+G53*VLOOKUP(Q53,$I$171:$Q$197,3,FALSE)+G55*VLOOKUP(Q55,$I$171:$Q$197,3,FALSE)+G57*VLOOKUP(Q57,$I$171:$Q$197,3,FALSE)+G59*VLOOKUP(Q59,$I$171:$Q$197,7,FALSE)+G61*VLOOKUP(Q61,$I$171:$Q$197,7,FALSE)+G63*VLOOKUP(Q63,$I$171:$Q$197,7,FALSE) -> 0 | S48: =+H53*VLOOKUP(S53,$I$171:$Q$197,3,FALSE)+H55*VLOOKUP(S55,$I$171:$Q$197,3,FALSE)+H57*VLOOKUP(S57,$I$171:$Q$197,3,FALSE)+H59*VLOOKUP(S59,$I$171:$Q$197,7,FALSE)+H61*VLOOKUP(S61,$I$171:$Q$197,7,FALSE)+H63*VLOOKUP(S63,$I$171:$Q$197,7,FALSE) -> 0
C51: Business and STB Students Only
C52: Year 1 | E52: Year 2 | F52: Year 3 | G52: Year 4 | H52: Year 5
A53: Masters Students (enter no. of students per term) | I53: 0 | K53: Summer 2018 | M53: Summer 2019 | O53: Summer 2020 | Q53: Summer 2021 | S53: Summer 2022
I55: Fall | K55: Fall 2018 | M55: Fall 2019 | O55: Fall 2020 | Q55: Fall 2021 | S55: Fall 2022
I57: Spring | K57: Spring 2019 | M57: Spring 2020 | O57: Spring 2021 | Q57: Spring 2022 | S57: Spring 2023
C58: Year 1 | E58: Year 2 | F58: Year 3 | G58: Year 4 | H58: Year 5
A59: PhD Students (enter no. of students per term) | I59: Summer | K59: Summer 2018 | M59: Summer 2019 | O59: Summer 2020 | Q59: Summer 2021 | S59: Summer 2022
I61: Fall | K61: Fall 2018 | M61: Fall 2019 | O61: Fall 2020 | Q61: Fall 2021 | S61: Fall 2022
I63: Spring | K63: Spring 2019 | M63: Spring 2020 | O63: Spring 2021 | Q63: Spring 2022 | S63: Spring 2023
A67: 8 | C67: Graduate Student Tuition (*Specific Graduate Departments) | G67: select 1/4-time/1/2-time > > | I67: 1/2-time | K67: =ROUND(IF($I67="1/2-time",K68,K69),0) -> 0 | M67: =ROUND(IF($I$67="1/2-time",M68,M69),0) -> 0 | O67: =ROUND(IF($I$67="1/2-time",O68,O69),0) -> 0 | Q67: =ROUND(IF($I$67="1/2-time",Q68,Q69),0) -> 0 | S67: =ROUND(IF($I$67="1/2-time",S68,S69),0) -> 0
A68: 8 | C68: Graduate Student Tuition | I68: Maximum | K68: =+C74*VLOOKUP(K74,$I$201:$Q$227,5,FALSE)+C76*VLOOKUP(K76,$I$201:$Q$227,5,FALSE)+C78*VLOOKUP(K78,$I$201:$Q$227,5,FALSE)+C80*VLOOKUP(K80,$I$201:$Q$227,9,FALSE)+C82*VLOOKUP(K82,$I$201:$Q$227,9,FALSE)+C84*VLOOKUP(K84,$I$201:$Q$227,9,FALSE) -> 0 | M68: =+E74*VLOOKUP(M74,$I$201:$Q$227,5,FALSE)+E76*VLOOKUP(M76,$I$201:$Q$227,5,FALSE)+E78*VLOOKUP(M78,$I$201:$Q$227,5,FALSE)+E80*VLOOKUP(M80,$I$201:$Q$227,9,FALSE)+E82*VLOOKUP(M82,$I$201:$Q$227,9,FALSE)+E84*VLOOKUP(M84,$I$201:$Q$227,9,FALSE) -> 0 | O68: =+F74*VLOOKUP(O74,$I$201:$Q$227,5,FALSE)+F76*VLOOKUP(O76,$I$201:$Q$227,5,FALSE)+F78*VLOOKUP(O78,$I$201:$Q$227,5,FALSE)+F80*VLOOKUP(O80,$I$201:$Q$227,9,FALSE)+F82*VLOOKUP(O82,$I$201:$Q$227,9,FALSE)+F84*VLOOKUP(O84,$I$201:$Q$227,9,FALSE) -> 0 | Q68: =+G74*VLOOKUP(Q74,$I$201:$Q$227,5,FALSE)+G76*VLOOKUP(Q76,$I$201:$Q$227,5,FALSE)+G78*VLOOKUP(Q78,$I$201:$Q$227,5,FALSE)+G80*VLOOKUP(Q80,$I$201:$Q$227,9,FALSE)+G82*VLOOKUP(Q82,$I$201:$Q$227,9,FALSE)+G84*VLOOKUP(Q84,$I$201:$Q$227,9,FALSE) -> 0 | S68: =+H74*VLOOKUP(S74,$I$201:$Q$227,5,FALSE)+H76*VLOOKUP(S76,$I$201:$Q$227,5,FALSE)+H78*VLOOKUP(S78,$I$201:$Q$227,5,FALSE)+H80*VLOOKUP(S80,$I$201:$Q$227,9,FALSE)+H82*VLOOKUP(S82,$I$201:$Q$227,9,FALSE)+H84*VLOOKUP(S84,$I$201:$Q$227,9,FALSE) -> 0
A69: 8 | C69: Graduate Student Tuition | I69: Minimum | K69: =+C74*VLOOKUP(K74,$I$201:$Q$227,3,FALSE)+C76*VLOOKUP(K76,$I$201:$Q$227,3,FALSE)+C78*VLOOKUP(K78,$I$201:$Q$227,3,FALSE)+C80*VLOOKUP(K80,$I$201:$Q$227,7,FALSE)+C82*VLOOKUP(K82,$I$201:$Q$227,7,FALSE)+C84*VLOOKUP(K84,$I$201:$Q$227,7,FALSE) -> 0 | M69: =+E74*VLOOKUP(M74,$I$201:$Q$227,3,FALSE)+E76*VLOOKUP(M76,$I$201:$Q$227,3,FALSE)+E78*VLOOKUP(M78,$I$201:$Q$227,3,FALSE)+E80*VLOOKUP(M80,$I$201:$Q$227,7,FALSE)+E82*VLOOKUP(M82,$I$201:$Q$227,7,FALSE)+E84*VLOOKUP(M84,$I$201:$Q$227,7,FALSE) -> 0 | O69: =+F74*VLOOKUP(O74,$I$201:$Q$227,3,FALSE)+F76*VLOOKUP(O76,$I$201:$Q$227,3,FALSE)+F78*VLOOKUP(O78,$I$201:$Q$227,3,FALSE)+F80*VLOOKUP(O80,$I$201:$Q$227,7,FALSE)+F82*VLOOKUP(O82,$I$201:$Q$227,7,FALSE)+F84*VLOOKUP(O84,$I$201:$Q$227,7,FALSE) -> 0 | Q69: =+G74*VLOOKUP(Q74,$I$201:$Q$227,3,FALSE)+G76*VLOOKUP(Q76,$I$201:$Q$227,3,FALSE)+G78*VLOOKUP(Q78,$I$201:$Q$227,3,FALSE)+G80*VLOOKUP(Q80,$I$201:$Q$227,7,FALSE)+G82*VLOOKUP(Q82,$I$201:$Q$227,7,FALSE)+G84*VLOOKUP(Q84,$I$201:$Q$227,7,FALSE) -> 0 | S69: =+H74*VLOOKUP(S74,$I$201:$Q$227,3,FALSE)+H76*VLOOKUP(S76,$I$201:$Q$227,3,FALSE)+H78*VLOOKUP(S78,$I$201:$Q$227,3,FALSE)+H80*VLOOKUP(S80,$I$201:$Q$227,7,FALSE)+H82*VLOOKUP(S82,$I$201:$Q$227,7,FALSE)+H84*VLOOKUP(S84,$I$201:$Q$227,7,FALSE) -> 0
C72: *Specific Graduate Departments
C73: Year 1 | E73: Year 2 | F73: Year 3 | G73: Year 4 | H73: Year 5
A74: Masters Students (enter no. of students per term) | I74: Summer | K74: Summer 2018 | M74: Summer 2019 | O74: Summer 2020 | Q74: Summer 2021 | S74: Summer 2022
I76: Fall | K76: Fall 2018 | M76: Fall 2019 | O76: Fall 2020 | Q76: Fall 2021 | S76: Fall 2022
I78: Spring | K78: Spring 2019 | M78: Spring 2020 | O78: Spring 2021 | Q78: Spring 2022 | S78: Spring 2023
C79: Year 1 | E79: Year 2 | F79: Year 3 | G79: Year 4 | H79: Year 5
A80: PhD Students (enter no. of students per term) | I80: Summer | K80: Summer 2018 | M80: Summer 2019 | O80: Summer 2020 | Q80: Summer 2021 | S80: Summer 2022
I82: Fall | K82: Fall 2018 | M82: Fall 2019 | O82: Fall 2020 | Q82: Fall 2021 | S82: Fall 2022
I84: Spring | K84: Spring 2019 | M84: Spring 2020 | O84: Spring 2021 | Q84: Spring 2022 | S84: Spring 2023
A85: *Animal Sci, Comp Sci, GDCB, Microbiology, Plant Path, BBMB, EEOB, Industrial Design, NREM
A88: 8 | C88: Graduate Student Tuition (Experiential Learning Based Majors) | G88: select 1/4-time/1/2-time > > | I88: 1/2-time | K88: =ROUND(IF($I88="1/2-time",K89,K90),0) -> 0 | M88: =ROUND(IF($I$67="1/2-time",M89,M90),0) -> 0 | O88: =ROUND(IF($I$67="1/2-time",O89,O90),0) -> 0 | Q88: =ROUND(IF($I$67="1/2-time",Q89,Q90),0) -> 0 | S88: =ROUND(IF($I$67="1/2-time",S89,S90),0) -> 0
A89: 8 | C89: Graduate Student Tuition | I89: Maximum | K89: =+C95*VLOOKUP(K95,$I$231:$Q$257,5,FALSE)+C97*VLOOKUP(K97,$I$231:$Q$257,5,FALSE)+C99*VLOOKUP(K99,$I$231:$Q$257,5,FALSE)+C101*VLOOKUP(K101,$I$231:$Q$257,9,FALSE)+C103*VLOOKUP(K103,$I$231:$Q$257,9,FALSE)+C105*VLOOKUP(K105,$I$231:$Q$257,9,FALSE) -> 0 | M89: =+E95*VLOOKUP(M95,$I$201:$Q$227,5,FALSE)+E97*VLOOKUP(M97,$I$201:$Q$227,5,FALSE)+E99*VLOOKUP(M99,$I$201:$Q$227,5,FALSE)+E101*VLOOKUP(M101,$I$201:$Q$227,9,FALSE)+E103*VLOOKUP(M103,$I$201:$Q$227,9,FALSE)+E105*VLOOKUP(M105,$I$201:$Q$227,9,FALSE) -> 0 | O89: =+F95*VLOOKUP(O95,$I$201:$Q$227,5,FALSE)+F97*VLOOKUP(O97,$I$201:$Q$227,5,FALSE)+F99*VLOOKUP(O99,$I$201:$Q$227,5,FALSE)+F101*VLOOKUP(O101,$I$201:$Q$227,9,FALSE)+F103*VLOOKUP(O103,$I$201:$Q$227,9,FALSE)+F105*VLOOKUP(O105,$I$201:$Q$227,9,FALSE) -> 0 | Q89: =+G95*VLOOKUP(Q95,$I$201:$Q$227,5,FALSE)+G97*VLOOKUP(Q97,$I$201:$Q$227,5,FALSE)+G99*VLOOKUP(Q99,$I$201:$Q$227,5,FALSE)+G101*VLOOKUP(Q101,$I$201:$Q$227,9,FALSE)+G103*VLOOKUP(Q103,$I$201:$Q$227,9,FALSE)+G105*VLOOKUP(Q105,$I$201:$Q$227,9,FALSE) -> 0 | S89: =+H95*VLOOKUP(S95,$I$201:$Q$227,5,FALSE)+H97*VLOOKUP(S97,$I$201:$Q$227,5,FALSE)+H99*VLOOKUP(S99,$I$201:$Q$227,5,FALSE)+H101*VLOOKUP(S101,$I$201:$Q$227,9,FALSE)+H103*VLOOKUP(S103,$I$201:$Q$227,9,FALSE)+H105*VLOOKUP(S105,$I$201:$Q$227,9,FALSE) -> 0
A90: 8 | C90: Graduate Student Tuition | I90: Minimum | K90: =+C95*VLOOKUP(K95,$I$231:$Q$257,3,FALSE)+C97*VLOOKUP(K97,$I$231:$Q$257,3,FALSE)+C99*VLOOKUP(K99,$I$231:$Q$257,3,FALSE)+C101*VLOOKUP(K101,$I$231:$Q$257,7,FALSE)+C103*VLOOKUP(K103,$I$231:$Q$257,7,FALSE)+C105*VLOOKUP(K105,$I$231:$Q$257,7,FALSE) -> 0 | M90: =+E95*VLOOKUP(M95,$I$201:$Q$227,3,FALSE)+E97*VLOOKUP(M97,$I$201:$Q$227,3,FALSE)+E99*VLOOKUP(M99,$I$201:$Q$227,3,FALSE)+E101*VLOOKUP(M101,$I$201:$Q$227,7,FALSE)+E103*VLOOKUP(M103,$I$201:$Q$227,7,FALSE)+E105*VLOOKUP(M105,$I$201:$Q$227,7,FALSE) -> 0 | O90: =+F95*VLOOKUP(O95,$I$201:$Q$227,3,FALSE)+F97*VLOOKUP(O97,$I$201:$Q$227,3,FALSE)+F99*VLOOKUP(O99,$I$201:$Q$227,3,FALSE)+F101*VLOOKUP(O101,$I$201:$Q$227,7,FALSE)+F103*VLOOKUP(O103,$I$201:$Q$227,7,FALSE)+F105*VLOOKUP(O105,$I$201:$Q$227,7,FALSE) -> 0 | Q90: =+G95*VLOOKUP(Q95,$I$201:$Q$227,3,FALSE)+G97*VLOOKUP(Q97,$I$201:$Q$227,3,FALSE)+G99*VLOOKUP(Q99,$I$201:$Q$227,3,FALSE)+G101*VLOOKUP(Q101,$I$201:$Q$227,7,FALSE)+G103*VLOOKUP(Q103,$I$201:$Q$227,7,FALSE)+G105*VLOOKUP(Q105,$I$201:$Q$227,7,FALSE) -> 0 | S90: =+H95*VLOOKUP(S95,$I$201:$Q$227,3,FALSE)+H97*VLOOKUP(S97,$I$201:$Q$227,3,FALSE)+H99*VLOOKUP(S99,$I$201:$Q$227,3,FALSE)+H101*VLOOKUP(S101,$I$201:$Q$227,7,FALSE)+H103*VLOOKUP(S103,$I$201:$Q$227,7,FALSE)+H105*VLOOKUP(S105,$I$201:$Q$227,7,FALSE) -> 0
C93: Experiential Learning Based Majors
C94: Year 1 | E94: Year 2 | F94: Year 3 | G94: Year 4 | H94: Year 5
A95: Masters Students (enter no. of students per term) | I95: Summer | K95: Summer 2018 | M95: Summer 2019 | O95: Summer 2020 | Q95: Summer 2021 | S95: Summer 2022
I97: Fall | K97: Fall 2018 | M97: Fall 2019 | O97: Fall 2020 | Q97: Fall 2021 | S97: Fall 2022
I99: Spring | K99: Spring 2019 | M99: Spring 2020 | O99: Spring 2021 | Q99: Spring 2022 | S99: Spring 2023
C100: Year 1 | E100: Year 2 | F100: Year 3 | G100: Year 4 | H100: Year 5
A101: PhD Students (enter no. of students per term) | I101: Summer | K101: Summer 2018 | M101: Summer 2019 | O101: Summer 2020 | Q101: Summer 2021 | S101: Summer 2022
I103: Fall | K103: Fall 2018 | M103: Fall 2019 | O103: Fall 2020 | Q103: Fall 2021 | S103: Fall 2022
I105: Spring | K105: Spring 2019 | M105: Spring 2020 | O105: Spring 2021 | Q105: Spring 2022 | S105: Spring 2023
A107: g | K107: Masters - Min | M107: Masters-Max | O107: PhD - Min | Q107: PhD - Max | S107: esc. Rate
S108: 1.04
I109: Most Majors | S109: 1/4-time
S110: 1/2-time
I111: Fall 2018 | K111: =$Q$111/4 -> 1162.75 | M111: =$O$111 -> 2325.5 | O111: =$Q$111/2 -> 2325.5 | Q111: 4651
I112: Fall 2019 | K112: =K111*$S$108 -> 1209.26 | M112: =M111*$S$108 -> 2418.52 | O112: =$Q$112/2 -> 2418.52 | Q112: =Q111*$S$108 -> 4837.04
I113: Fall 2020 | K113: =K112*$S$108 -> 1257.6304 | M113: =M112*$S$108 -> 2515.2608 | O113: 2515.2608 | Q113: 5030.5216
I114: Fall 2021 | K114: 1307.935616 | M114: 2615.871232 | O114: 2615.871232 | Q114: =Q113*$S$108 -> 5231.742464
I115: Fall 2022 | K115: 1360.253041 | M115: 2720.506081 | O115: 2720.506081 | Q115: =Q114*$S$108 -> 5441.012163
I116: Fall 2023 | K116: 1414.663162 | M116: 2829.326325 | O116: 2829.326325 | Q116: =Q115*$S$108 -> 5658.652649
I117: Fall 2024 | K117: 1471.249689 | M117: 2942.499378 | O117: 2942.499378 | Q117: =Q116*$S$108 -> 5884.998755
I118: Fall 2025 | K118: 1530.099676 | M118: 3060.199353 | O118: 3060.199353 | Q118: 6120.398705
I120: Spring 2019 | K120: =$Q$120/4 -> 1162.75 | M120: =$Q$120/2 -> 2325.5 | O120: =$Q$120/2 -> 2325.5 | Q120: 4651
I121: Spring 2020 | K121: =M121/2 -> 1209.26 | M121: =O121 -> 2418.52 | O121: =Q121/2 -> 2418.52 | Q121: =Q120*$S$108 -> 4837.04
I122: Spring 2021 | K122: =K121*$S$108 -> 1257.6304 | M122: =M121*$S$108 -> 2515.2608 | O122: =O121*$S$108 -> 2515.2608 | Q122: =Q121*$S$108 -> 5030.5216
I123: Spring 2022 | K123: 1307.935616 | M123: 2615.871232 | O123: 2615.871232 | Q123: =Q122*$S$108 -> 5231.742464
I124: Spring 2023 | K124: 1360.253041 | M124: 2720.506081 | O124: 2720.506081 | Q124: 5441.012163
I125: Spring 2024 | K125: 1414.663162 | M125: 2829.326325 | O125: 2829.326325 | Q125: 5658.652649
I126: Spring 2025 | K126: 1471.249689 | M126: 2942.499378 | O126: 2942.499378 | Q126: 5884.998755
I127: Spring 2026 | K127: 1530.099676 | M127: 3060.199353 | O127: 3060.199353 | Q127: 6120.398705
I129: Summer 2018 | K129: =$Q$129/4 -> 621.25 | M129: =$Q$129/2 -> 1242.5 | O129: =$Q$129/2 -> 1242.5 | Q129: 2485
I130: Summer 2019 | K130: =K129*$S$108 -> 646.1 | M130: =M129*$S$108 -> 1292.2 | O130: =O129*$S$108 -> 1292.2 | Q130: =Q129*$S$108 -> 2584.4
I131: Summer 2020 | K131: =K130*$S$108 -> 671.944 | M131: =M130*$S$108 -> 1343.888 | O131: =O130*$S$108 -> 1343.888 | Q131: =Q130*$S$108 -> 2687.776
I132: Summer 2021 | K132: 698.82176 | M132: 1397.64352 | O132: 1397.64352 | Q132: 2795.28704
I133: Summer 2022 | K133: 726.7746304 | M133: 1453.549261 | O133: 1453.549261 | Q133: 2907.098522
I134: Summer 2023 | K134: 755.8456156 | M134: 1511.691231 | O134: 1511.691231 | Q134: 3023.382462
I135: Summer 2024 | K135: 786.0794402 | M135: 1572.15888 | O135: 1572.15888 | Q135: 3144.317761
I136: Summer 2025 | K136: 817.5226179 | M136: =M135*$S$108 -> 1635.045236 | O136: 1635.045236 | Q136: 3270.090471
I138: Engineering
K139: Masters - Min | M139: Masters-Max | O139: PhD - Min | Q139: PhD - Max
I141: Fall 2018 | K141: =$Q$141/4 -> 1409.5 | M141: =$O$141 -> 2819 | O141: =$Q$141/2 -> 2819 | Q141: 5638
I142: Fall 2019 | K142: =K141*$S$108 -> 1465.88 | M142: =M141*$S$108 -> 2931.76 | O142: =O141*$S$108 -> 2931.76 | Q142: =Q141*$S$108 -> 5863.52
I143: Fall 2020 | K143: =K142*$S$108 -> 1524.5152 | M143: =M142*$S$108 -> 3049.0304 | O143: =O142*$S$108 -> 3049.0304 | Q143: 6098.0608
I144: Fall 2021 | K144: 1585.495808 | M144: 3170.991616 | O144: 3170.991616 | Q144: 6341.983232
I145: Fall 2022 | K145: 1648.91564 | M145: 3297.831281 | O145: 3297.831281 | Q145: 6595.662561
I146: Fall 2023 | K146: 1714.872266 | M146: 3429.744532 | O146: 3429.744532 | Q146: 6859.489064
I147: Fall 2024 | K147: =K146*$S$108 -> 1783.467157 | M147: 3566.934313 | O147: 3566.934313 | Q147: 7133.868626
I148: Fall 2025 | K148: 1854.805843 | M148: 3709.611686 | O148: 3709.611686 | Q148: 7419.223371
K149: 0 | O149: 0
I150: Spring 2019 | K150: =$Q$150/4 -> 1409.5 | M150: =$O$150 -> 2819 | O150: =$Q$150/2 -> 2819 | Q150: 5638
I151: Spring 2020 | K151: =$M$151/2 -> 1465.88 | M151: =O151 -> 2931.76 | O151: =Q151/2 -> 2931.76 | Q151: =$Q$150*$S$108 -> 5863.52
I152: Spring 2021 | K152: =K151*$S$108 -> 1524.5152 | M152: =M151*$S$108 -> 3049.0304 | O152: =O151*$S$108 -> 3049.0304 | Q152: =$Q$151*$S$108 -> 6098.0608
I153: Spring 2022 | K153: 1585.495808 | M153: 3170.991616 | O153: =O152*$S$108 -> 3170.991616 | Q153: =$Q$152*$S$108 -> 6341.983232
I154: Spring 2023 | K154: 1648.91564 | M154: 3297.831281 | O154: =O153*$S$108 -> 3297.831281 | Q154: =$Q$153*$S$108 -> 6595.662561
I155: Spring 2024 | K155: 1714.872266 | M155: 3429.744532 | O155: =O154*$S$108 -> 3429.744532 | Q155: =$Q$154*$S$108 -> 6859.489064
I156: Spring 2025 | K156: 1783.467157 | M156: 3566.934313 | O156: =O155*$S$108 -> 3566.934313 | Q156: =$Q$155*$S$108 -> 7133.868626
I157: Spring 2026 | K157: 1854.805843 | M157: 3709.611686 | O157: =$O$156*$S$108 -> 3709.611686 | Q157: =$Q$156*$S$108 -> 7419.223371
K158: 0 | O158: 0
I159: Summer 2018 | K159: =$Q$159/4 -> 715 | M159: =$Q$159/2 -> 1430 | O159: =$Q$159/2 -> 1430 | Q159: 2860
I160: Summer 2019 | K160: =K159*$S$108 -> 743.6 | M160: =M159*$S$108 -> 1487.2 | O160: =O159*$S$108 -> 1487.2 | Q160: =Q159*$S$108 -> 2974.4
I161: Summer 2020 | K161: =K160*$S$108 -> 773.344 | M161: =M160*$S$108 -> 1546.688 | O161: =O160*$S$108 -> 1546.688 | Q161: =Q160*$S$108 -> 3093.376
I162: Summer 2021 | K162: 804.27776 | M162: 1608.55552 | O162: 1608.55552 | Q162: 3217.11104
I163: Summer 2022 | K163: 836.4488704 | M163: 1672.897741 | O163: 1672.897741 | Q163: 3345.795482
I164: Summer 2023 | K164: 869.9068252 | M164: 1739.81365 | O164: 1739.81365 | Q164: 3479.627301
I165: Summer 2024 | K165: 904.7030982 | M165: 1809.406196 | O165: 1809.406196 | Q165: 3618.812393
I166: Summer 2025 | K166: 940.8912222 | M166: 1881.782444 | O166: 1881.782444 | Q166: 3763.564889
I168: Business & Seed Technology
K169: Masters - Min | M169: Masters-Max | O169: PhD - Min | Q169: PhD - Max
I171: Fall 2018 | K171: =Q171/4 -> 1442.75 | M171: =Q171/2 -> 2885.5 | O171: =Q171/2 -> 2885.5 | Q171: 5771
I172: Fall 2019 | K172: =K171*$S$108 -> 1500.46 | M172: =M171*$S$108 -> 3000.92 | O172: =O171*$S$108 -> 3000.92 | Q172: =Q171*$S$108 -> 6001.84
I173: Fall 2020 | K173: =K172*$S$108 -> 1560.4784 | M173: =M172*$S$108 -> 3120.9568 | O173: =O172*$S$108 -> 3120.9568 | Q173: =Q172*$S$108 -> 6241.9136
I174: Fall 2021 | K174: 1622.897536 | M174: 3245.795072 | O174: 3245.795072 | Q174: 6491.590144
I175: Fall 2022 | K175: 1687.813437 | M175: 3375.626875 | O175: 3375.626875 | Q175: 6751.25375
I176: Fall 2023 | K176: 1755.325975 | M176: 3510.65195 | O176: 3510.65195 | Q176: 7021.3039
I177: Fall 2024 | K177: 1825.539014 | M177: 3651.078028 | O177: 3651.078028 | Q177: 7302.156056
I178: Fall 2025 | K178: 1898.560574 | M178: 3797.121149 | O178: 3797.121149 | Q178: 7594.242298
K179: 0 | O179: 0
I180: Spring 2019 | K180: =Q180/4 -> 1442.75 | M180: =Q180/2 -> 2885.5 | O180: =Q180/2 -> 2885.5 | Q180: 5771
I181: Spring 2020 | K181: =M181/2 -> 1500.46 | M181: =O181 -> 3000.92 | O181: =Q181/2 -> 3000.92 | Q181: =Q180*$S$108 -> 6001.84
I182: Spring 2021 | K182: =K181*$S$108 -> 1560.4784 | M182: =M181*$S$108 -> 3120.9568 | O182: =O181*$S$108 -> 3120.9568 | Q182: =Q181*$S$108 -> 6241.9136
I183: Spring 2022 | K183: 1622.897536 | M183: 3245.795072 | O183: 3245.795072 | Q183: =Q182*$S$108 -> 6491.590144
I184: Spring 2023 | K184: 1687.813437 | M184: 3375.626875 | O184: 3375.626875 | Q184: 6751.25375
I185: Spring 2024 | K185: 1755.325975 | M185: 3510.65195 | O185: 3510.65195 | Q185: 7021.3039
I186: Spring 2025 | K186: 1825.539014 | M186: 3651.078028 | O186: 3651.078028 | Q186: 7302.156056
I187: Spring 2026 | K187: 1898.560574 | M187: 3797.121149 | O187: 3797.121149 | Q187: 7594.242298
K188: 0 | O188: 0
I189: Summer 2018 | K189: =Q189/4 -> 751.25 | M189: =Q189/2 -> 1502.5 | O189: =Q189/2 -> 1502.5 | Q189: 3005
I190: Summer 2019 | K190: =K189*$S$108 -> 781.3 | M190: =M189*$S$108 -> 1562.6 | O190: =O189*$S$108 -> 1562.6 | Q190: =Q189*$S$108 -> 3125.2
I191: Summer 2020 | K191: =K190*$S$108 -> 812.552 | M191: =M190*$S$108 -> 1625.104 | O191: =O190*$S$108 -> 1625.104 | Q191: =Q190*$S$108 -> 3250.208
I192: Summer 2021 | K192: 845.05408 | M192: 1690.10816 | O192: 1690.10816 | Q192: 3380.21632
I193: Summer 2022 | K193: 878.8562432 | M193: 1757.712486 | O193: 1757.712486 | Q193: 3515.424973
I194: Summer 2023 | K194: 914.0104929 | M194: 1828.020986 | O194: 1828.020986 | Q194: 3656.041972
I195: Summer 2024 | K195: 950.5709126 | M195: 1901.141825 | O195: 1901.141825 | Q195: 3802.283651
I196: Summer 2025 | K196: 988.5937492 | M196: 1977.187498 | O196: 1977.187498 | Q196: 3954.374997
I198: Specific Graduate Departments
K199: Masters - Min | M199: Masters-Max | O199: PhD - Min | Q199: PhD - Max
I201: Fall 2018 | K201: =Q201/4 -> 1286.25 | M201: =Q201/2 -> 2572.5 | O201: =Q201/2 -> 2572.5 | Q201: 5145
I202: Fall 2019 | K202: =K201*$S$108 -> 1337.7 | M202: =M201*$S$108 -> 2675.4 | O202: =O201*$S$108 -> 2675.4 | Q202: =Q201*$S$108 -> 5350.8
I203: Fall 2020 | K203: =K202*$S$108 -> 1391.208 | M203: =M202*$S$108 -> 2782.416 | O203: =O202*$S$108 -> 2782.416 | Q203: =Q202*$S$108 -> 5564.832
I204: Fall 2021 | K204: 1446.85632 | M204: 2893.71264 | O204: 2893.71264 | Q204: 5787.42528
I205: Fall 2022 | K205: 1504.730573 | M205: 3009.461146 | O205: 3009.461146 | Q205: 6018.922291
I206: Fall 2023 | K206: 1564.919796 | M206: 3129.839591 | O206: 3129.839591 | Q206: 6259.679183
I207: Fall 2024 | K207: 1627.516588 | M207: 3255.033175 | O207: 3255.033175 | Q207: 6510.06635
I208: Fall 2025 | K208: 1692.617251 | M208: 3385.234502 | O208: 3385.234502 | Q208: 6770.469004
K209: 0 | O209: 0
I210: Spring 2019 | K210: =Q210/4 -> 1286.25 | M210: =Q210/2 -> 2572.5 | O210: =Q210/2 -> 2572.5 | Q210: 5145
I211: Spring 2020 | K211: =M211/2 -> 1337.7 | M211: =O211 -> 2675.4 | O211: =Q211/2 -> 2675.4 | Q211: =Q210*$S$108 -> 5350.8
I212: Spring 2021 | K212: =K211*$S$108 -> 1391.208 | M212: =M211*$S$108 -> 2782.416 | O212: =O211*$S$108 -> 2782.416 | Q212: =Q211*$S$108 -> 5564.832
I213: Spring 2022 | K213: 1446.85632 | M213: 2893.71264 | O213: 2893.71264 | Q213: =Q212*$S$108 -> 5787.42528
I214: Spring 2023 | K214: 1504.730573 | M214: 3009.461146 | O214: 3009.461146 | Q214: 6018.922291
I215: Spring 2024 | K215: 1564.919796 | M215: 3129.839591 | O215: 3129.839591 | Q215: 6259.679183
I216: Spring 2025 | K216: 1627.516588 | M216: 3255.033175 | O216: 3255.033175 | Q216: 6510.06635
I217: Spring 2026 | K217: 1692.617251 | M217: 3385.234502 | O217: 3385.234502 | Q217: 6770.469004
K218: 0 | O218: 0
I219: Summer 2018 | K219: =Q219/4 -> 647.5 | M219: =Q219/2 -> 1295 | O219: =Q219/2 -> 1295 | Q219: 2590
I220: Summer 2019 | K220: =K219*$S$108 -> 673.4 | M220: =M219*$S$108 -> 1346.8 | O220: =O219*$S$108 -> 1346.8 | Q220: =Q219*$S$108 -> 2693.6
I221: Summer 2020 | K221: =K220*$S$108 -> 700.336 | M221: =M220*$S$108 -> 1400.672 | O221: =O220*$S$108 -> 1400.672 | Q221: =Q220*$S$108 -> 2801.344
I222: Summer 2021 | K222: 728.34944 | M222: 1456.69888 | O222: 1456.69888 | Q222: 2913.39776
I223: Summer 2022 | K223: 757.4834176 | M223: 1514.966835 | O223: 1514.966835 | Q223: 3029.93367
I224: Summer 2023 | K224: 787.7827543 | M224: 1575.565509 | O224: 1575.565509 | Q224: 3151.131017
I225: Summer 2024 | K225: 819.2940645 | M225: 1638.588129 | O225: 1638.588129 | Q225: 3277.176258
I226: Summer 2025 | K226: 852.0658271 | M226: 1704.131654 | O226: 1704.131654 | Q226: 3408.263308
I228: Experiential Learning Based Majors
K229: Masters - Min | M229: Masters-Max | O229: PhD - Min | Q229: PhD - Max
I231: Fall 2018 | K231: =Q231/4 -> 1229.5 | M231: =Q231/2 -> 2459 | O231: =Q231/2 -> 2459 | Q231: 4918
I232: Fall 2019 | K232: =K231*$S$108 -> 1278.68 | M232: =M231*$S$108 -> 2557.36 | O232: =O231*$S$108 -> 2557.36 | Q232: =Q231*$S$108 -> 5114.72
I233: Fall 2020 | K233: =K232*$S$108 -> 1329.8272 | M233: =M232*$S$108 -> 2659.6544 | O233: =O232*$S$108 -> 2659.6544 | Q233: =Q232*$S$108 -> 5319.3088
I234: Fall 2021 | K234: 1383.020288 | M234: 2766.040576 | O234: 2766.040576 | Q234: 5532.081152
I235: Fall 2022 | K235: 1438.3411 | M235: 2876.682199 | O235: 2876.682199 | Q235: 5753.364398
I236: Fall 2023 | K236: 1495.874744 | M236: 2991.749487 | O236: 2991.749487 | Q236: 5983.498974
I237: Fall 2024 | K237: 1555.709733 | M237: 3111.419466 | O237: 3111.419466 | Q237: 6222.838933
I238: Fall 2025 | K238: 1617.938123 | M238: 3235.876245 | O238: 3235.876245 | Q238: 6471.75249
K239: 0 | O239: 0
I240: Spring 2019 | K240: =Q240/4 -> 1229.5 | M240: =Q240/2 -> 2459 | O240: =Q240/2 -> 2459 | Q240: 4918
I241: Spring 2020 | K241: =M241/2 -> 1278.68 | M241: =O241 -> 2557.36 | O241: =Q241/2 -> 2557.36 | Q241: =Q240*$S$108 -> 5114.72
I242: Spring 2021 | K242: =K241*$S$108 -> 1329.8272 | M242: =M241*$S$108 -> 2659.6544 | O242: =O241*$S$108 -> 2659.6544 | Q242: =Q241*$S$108 -> 5319.3088
I243: Spring 2022 | K243: 1383.020288 | M243: 2766.040576 | O243: 2766.040576 | Q243: =Q242*$S$108 -> 5532.081152
I244: Spring 2023 | K244: 1438.3411 | M244: 2876.682199 | O244: 2876.682199 | Q244: 5753.364398
I245: Spring 2024 | K245: 1495.874744 | M245: 2991.749487 | O245: 2991.749487 | Q245: 5983.498974
I246: Spring 2025 | K246: 1555.709733 | M246: 3111.419466 | O246: 3111.419466 | Q246: 6222.838933
I247: Spring 2026 | K247: 1617.938123 | M247: 3235.876245 | O247: 3235.876245 | Q247: 6471.75249
K248: 0 | O248: 0
I249: Summer 2018 | K249: =Q249/4 -> 683.75 | M249: =Q249/2 -> 1367.5 | O249: =Q249/2 -> 1367.5 | Q249: 2735
I250: Summer 2019 | K250: =K249*$S$108 -> 711.1 | M250: =M249*$S$108 -> 1422.2 | O250: =O249*$S$108 -> 1422.2 | Q250: =Q249*$S$108 -> 2844.4
I251: Summer 2020 | K251: =K250*$S$108 -> 739.544 | M251: =M250*$S$108 -> 1479.088 | O251: =O250*$S$108 -> 1479.088 | Q251: =Q250*$S$108 -> 2958.176
I252: Summer 2021 | K252: 769.12576 | M252: 1538.25152 | O252: 1538.25152 | Q252: 3076.50304
I253: Summer 2022 | K253: 799.8907904 | M253: 1599.781581 | O253: 1599.781581 | Q253: 3199.563162
I254: Summer 2023 | K254: 831.886422 | M254: 1663.772844 | O254: 1663.772844 | Q254: 3327.545688
... 30 more rows

Sheet SPA USE ONLY
A1: Sponsor: | B1: =Summary!D3 -> 0
A2: Title: | B2: =Summary!D4 -> 0
A3: PI Name: | B3: =Summary!D5 -> 0
A4: Period of Performance: | B4: =Summary!D6 -> 00:00:00
A5: Account Number:
A7: Budget Categories | B7: Budget Code | C7: Amount
A8: Salary/Hourly | B8: 0108 | C8: =ROUND(Summary!R39,0) -> 0
A9: Payroll Benefits | B9: 0130 | C9: =ROUND(Summary!R41,0) -> 0
A10: Equipment | B10: 0710 | C10: =ROUND(Summary!R66,0) -> 0
A11: Travel Domestic | B11: 0215 | C11: =ROUND(Summary!R71+Summary!R76+Summary!R77,0) -> 0
A12: Travel Foreign | B12: 0216 | C12: =ROUND(Summary!R72,0) -> 0
A13: Student Tuition | B13: 0610 | C13: =ROUND(SUM(Summary!R91:R93),0) -> 0
A14: Supplies | B14: 0410 | C14: =ROUND(Summary!R81,0) -> 0
A15: Subcontracts
A16: Subject to IDC | B16: 0396 | C16: =ROUND(Summary!R87+Summary!R89,0) -> 0
A17: Not Subejct to IDC | B17: 0376 | C17: =ROUND(Summary!R88+Summary!R90,0) -> 0
A18: Other Direct Costs
A19: Computer Usage | B19: 0353 | C19: =ROUND(Summary!R84,0) -> 0
A20: Printing/Copying | B20: 0373 | C20: =ROUND(Summary!R82,0) -> 0
A21: Services/Honoraria | B21: 0302 | C21: =ROUND(Summary!R75+Summary!R83,0) -> 0
A22: Other | B22: 0630 | C22: =ROUND(Summary!R85+Summary!R96+Summary!R97+Summary!R78+Summary!R86,0) -> 0
A23: Total Direct Costs | C23: =SUM(C8:C22) -> 0
A24: Indirect Costs | B24: 0642 | C24: =ROUND(Summary!R105,0) -> 0
A25: Total Costs | C25: =SUM(C23:C24) -> 0
